{"text_format":"1","workbook":"xlsx","n_sheets":4,"sheets":["提出用","提出用写","入力用","提出用控"],"not_rendered":{"charts":0,"images":4,"macros":1,"external_links":0,"defined_names":4,"comments":0,"pivot_tables":0},"unopened":[],"bounds":{"document_bytes":16777216,"sheet_cells":100000,"rows_first":2000,"rows_last":500,"rows_between":2000,"halvings":0,"cell_chars":16384,"cell_head_chars":4096},"cells_cut":0,"cells_raw":0,"read":"whole","date_system":"1900"}

{"sheet":"提出用","index":0,"n_rows":163,"n_cols":109,"rows_kept":163,"cut":false,"hidden":false,"merged":[[64,1,65,11],[64,12,65,16],[64,17,64,68],[64,69,64,117],[17,1,18,11],[8,75,9,80],[8,81,9,86],[8,87,9,92],[8,93,9,98],[8,99,9,104],[8,105,9,110],[8,111,9,117],[11,95,12,102],[11,103,13,117],[22,17,22,68],[44,69,44,117],[34,17,34,68],[36,17,36,68],[38,17,38,68],[54,69,54,117],[56,69,56,117],[58,17,58,68],[12,14,14,15],[24,17,24,68],[2,99,3,107],[2,108,3,117],[4,99,4,102],[4,103,4,107],[4,108,4,112],[4,113,4,117],[2,69,3,98],[4,69,4,98],[40,69,40,117],[34,69,34,117],[36,69,36,117],[38,69,38,117],[26,69,26,117],[28,69,28,117],[8,69,9,74],[20,69,20,117],[22,69,22,117],[14,95,15,102],[14,103,16,117],[5,78,5,80],[5,81,5,83],[5,84,5,86],[5,87,5,89],[5,75,5,77],[24,69,24,117],[46,69,46,117],[48,17,48,68],[48,69,48,117],[50,17,50,68],[50,69,50,117],[28,17,28,68],[4,1,6,63],[5,90,5,92],[5,93,5,95],[5,96,5,98],[6,69,7,80],[6,81,7,117],[5,72,5,74],[30,17,30,68],[30,69,30,117],[32,17,32,68],[32,69,32,117],[42,17,42,68],[42,69,42,117],[44,17,44,68],[2,64,10,68],[12,16,14,21],[12,22,14,34],[58,69,58,117],[60,17,60,68],[60,69,60,117],[62,17,62,68],[62,69,62,117],[52,17,52,68],[52,69,52,117],[66,17,66,68],[66,69,66,117],[12,35,14,50],[12,11,14,13],[22,1,23,11],[56,17,56,68],[46,17,46,68],[40,17,40,68],[26,17,26,68],[24,1,25,11],[26,1,27,11],[28,1,29,11],[30,1,31,11],[32,1,33,11],[34,1,35,11],[36,1,37,11],[38,1,39,11],[40,1,41,11],[54,12,55,16],[56,12,57,16],[54,17,54,68],[48,12,49,16],[50,12,51,16],[46,12,47,16],[52,12,53,16],[17,12,18,117],[60,12,61,16],[42,1,43,11],[44,1,45,11],[46,1,47,11],[48,1,49,11],[50,1,51,11],[52,1,53,11],[54,1,55,11],[56,1,57,11],[58,1,59,11],[3,1,3,63],[7,1,8,63],[9,1,9,63],[62,12,63,16],[66,12,67,16],[20,1,21,11],[19,1,19,11],[60,1,61,11],[62,1,63,11],[66,1,67,11],[19,12,21,16],[22,12,23,16],[24,12,25,16],[26,12,27,16],[28,12,29,16],[30,12,31,16],[32,12,33,16],[34,12,35,16],[36,12,37,16],[38,12,39,16],[40,12,41,16],[42,12,43,16],[44,12,45,16],[58,12,59,16]]}
[]
[]
[null,null,null,null,null,null,null,null,null,null,null,null,null,null,null,null,null,null,null,null,null,null,null,null,null,null,null,null,null,null,null,null,null,null,null,null,null,null,null,null,null,null,null,null,null,null,null,null,null,null,null,null,null,null,null,null,null,null,null,null,null,null,null,null,"※処理事項",null,null,null,null,"事業者コード",null,null,null,null,null,null,null,null,null,null,null,null,null,null,null,null,null,null,null,null,null,null,null,null,null,null,null,null,null,"処理\n区分",null,null,null,null,null,null,null,null,"申告\n区分"]
[null,"　申告者の氏名又は名称"]
[]
[]
[null,null,null,null,null,null,null,null,null,null,null,null,null,null,null,null,null,null,null,null,null,null,null,null,null,null,null,null,null,null,null,null,null,null,null,null,null,null,null,null,null,null,null,null,null,null,null,null,null,null,null,null,null,null,null,null,null,null,null,null,null,null,null,null,null,null,null,null,null,"予備",null,null,null,null,null,null,null,null,null,null,null,"申告年月日"]
[null,"　個人番号又は法人番号\n　 　    　　↓個人番号の記載に当たっては、左端を空欄とし、ここから記載してください。"]
[null,null,null,null,null,null,null,null,null,null,null,null,null,null,null,null,null,null,null,null,null,null,null,null,null,null,null,null,null,null,null,null,null,null,null,null,null,null,null,null,null,null,null,null,null,null,null,null,null,null,null,null,null,null,null,null,null,null,null,null,null,null,null,null,null,null,null,null,null,1,null,null,null,null,null,3]
[]
[]
[null,null,null,null,null,null,null,null,null,null,null,null,null,null,null,null,null,null,null,null,null,null,null,null,null,null,null,null,null,null,null,null,null,null,null,null,null,null,null,null,null,null,null,null,null,null,null,null,null,null,null,null,null,null,null,null,null,null,null,null,null,null,null,null,null,null,null,null,null,null,null,null,null,null,null,null,null,null,null,null,null,null,null,null,null,null,null,null,null,null,null,null,null,null,null,null,null,null,null,null,null,null,null,"枚のうち"]
[null,null,null,null,null,null,null,null,null,null,null,"令和",null,null,null,null,"年",null,null,null,null,null,null,null,null,null,null,null,null,null,null,null,null,null,null,"月分"]
[]
[null,null,null,null,null,null,null,null,null,null,null,null,null,null,null,null,null,null,null,null,null,null,null,null,null,null,null,null,null,null,null,null,null,null,null,null,null,null,null,null,null,null,null,null,null,null,null,null,null,null,null,null,null,null,null,null,null,null,null,null,null,null,null,null,null,null,null,null,null,null,null,null,null,null,null,null,null,null,null,null,null,null,null,null,null,null,null,null,null,null,null,null,null,null,null,null,null,null,null,null,null,null,null,"枚目"]
[]
[]
[null,"区市町村名",null,null,null,null,null,null,null,null,null,null,"売渡し又は消費等の合計数量"]
[]
[]
[]
[]
[]
[]
[]
[]
[]
[]
[]
[]
[]
[]
[]
[]
[]
[]
[]
[]
[]
[]
[]
[]
[]
[]
[]
[]
[]
[]
[]
[]
[]
[]
[]
[]
[]
[]
[]
[]
[]
[]
[]
[]
[]
[]
[]
[]
[]
[]
[]
[]
[]
[]
[]
[]
[]
[]
[]
[]
[]
[]
[]
[]
[]
[]
[]
[]
[]
[]
[]
[]
[]
[]
[]
[]
[]
[]
[]
[]
[]
[]
[null,"千代田区"]
[null,"中央区"]
[null,"港区"]
[null,"新宿区"]
[null,"文京区"]
[null,"台東区"]
[null,"墨田区"]
[null,"江東区"]
[null,"品川区"]
[null,"目黒区"]
[null,"大田区"]
[null,"世田谷区"]
[null,"渋谷区"]
[null,"中野区"]
[null,"杉並区"]
[null,"豊島区"]
[null,"北区"]
[null,"荒川区"]
[null,"板橋区"]
[null,"練馬区"]
[null,"足立区"]
[null,"葛飾区"]
[null,"江戸川区"]
[null,"八王子市"]
[null,"立川市"]
[null,"武蔵野市"]
[null,"三鷹市"]
[null,"青梅市"]
[null,"府中市"]
[null,"昭島市"]
[null,"調布市"]
[null,"町田市"]
[null,"小金井市"]
[null,"小平市"]
[null,"日野市"]
[null,"東村山市"]
[null,"国分寺市"]
[null,"国立市"]
[null,"福生市"]
[null,"狛江市"]
[null,"東大和市"]
[null,"清瀬市"]
[null,"東久留米市"]
[null,"武蔵村山市"]
[null,"多摩市"]
[null,"稲城市"]
[null,"羽村市"]
[null,"あきる野市"]
[null,"西東京市"]
[null,"瑞穂町"]
[null,"日の出町"]
[null,"檜原村"]
[null,"奥多摩町"]
[null,"大島町"]
[null,"利島村"]
[null,"新島村"]
[null,"神津島村"]
[null,"三宅村"]
[null,"御蔵島村"]
[null,"八丈町"]
[null,"青ヶ島村"]
[null,"小笠原村"]
[null,"合計"]

{"sheet":"提出用写","index":1,"n_rows":163,"n_cols":123,"rows_kept":163,"cut":false,"hidden":true,"merged":[[64,1,65,11],[64,12,65,12],[64,13,64,16],[64,17,64,68],[64,69,64,117],[20,13,20,16],[4,108,4,112],[5,72,5,74],[5,75,5,77],[5,78,5,80],[5,81,5,83],[5,84,5,86],[5,87,5,89],[5,90,5,92],[4,69,4,98],[2,64,10,68],[2,69,3,98],[2,99,3,107],[5,93,5,95],[5,96,5,98],[6,69,7,80],[6,81,7,117],[4,113,4,117],[2,108,3,117],[4,99,4,102],[4,103,4,107],[14,95,15,102],[14,103,16,117],[17,1,18,11],[20,17,20,68],[20,69,20,117],[8,99,9,104],[8,105,9,110],[8,111,9,117],[11,95,12,102],[11,103,13,117],[12,11,14,13],[12,14,14,15],[12,16,14,21],[12,22,14,34],[12,35,14,50],[20,1,21,11],[19,1,19,11],[8,69,9,74],[8,75,9,80],[8,81,9,86],[8,87,9,92],[8,93,9,98],[26,17,26,68],[26,69,26,117],[28,1,29,11],[28,17,28,68],[28,69,28,117],[28,12,29,12],[22,1,23,11],[22,17,22,68],[22,69,22,117],[24,1,25,11],[24,17,24,68],[24,69,24,117],[26,13,26,16],[28,13,28,16],[17,17,18,117],[34,1,35,11],[34,17,34,68],[34,69,34,117],[36,1,37,11],[36,17,36,68],[36,69,36,117],[34,12,35,12],[36,12,37,12],[30,1,31,11],[30,17,30,68],[30,69,30,117],[32,1,33,11],[32,17,32,68],[32,69,32,117],[30,12,31,12],[32,12,33,12],[30,13,30,16],[32,13,32,16],[34,13,34,16],[36,13,36,16],[22,13,22,16],[24,13,24,16],[26,1,27,11],[38,1,39,11],[38,17,38,68],[38,69,38,117],[40,1,41,11],[40,17,40,68],[40,69,40,117],[38,12,39,12],[40,12,41,12],[38,13,38,16],[40,13,40,16],[42,1,43,11],[42,17,42,68],[42,69,42,117],[44,1,45,11],[44,17,44,68],[44,69,44,117],[42,12,43,12],[44,12,45,12],[42,13,42,16],[44,13,44,16],[50,12,51,12],[52,12,53,12],[50,13,50,16],[52,13,52,16],[46,1,47,11],[46,17,46,68],[46,69,46,117],[48,1,49,11],[48,17,48,68],[48,69,48,117],[46,12,47,12],[48,12,49,12],[46,13,46,16],[48,13,48,16],[50,1,51,11],[50,17,50,68],[50,69,50,117],[52,1,53,11],[52,17,52,68],[52,69,52,117],[60,17,60,68],[60,69,60,117],[58,12,59,12],[60,12,61,12],[58,13,58,16],[60,13,60,16],[54,1,55,11],[54,17,54,68],[54,69,54,117],[56,1,57,11],[56,17,56,68],[56,69,56,117],[54,12,55,12],[56,12,57,12],[54,13,54,16],[56,13,56,16],[4,1,6,63],[3,1,3,63],[7,1,8,63],[9,1,9,63],[66,1,67,11],[66,17,66,68],[66,69,66,117],[17,13,18,16],[17,12,18,12],[19,12,21,12],[22,12,23,12],[24,12,25,12],[26,12,27,12],[62,1,63,11],[62,17,62,68],[62,69,62,117],[62,12,63,12],[62,13,62,16],[58,1,59,11],[58,17,58,68],[58,69,58,117],[60,1,61,11],[66,13,66,16],[66,12,67,12]]}
[]
[]
[null,null,null,null,null,null,null,null,null,null,null,null,null,null,null,null,null,null,null,null,null,null,null,null,null,null,null,null,null,null,null,null,null,null,null,null,null,null,null,null,null,null,null,null,null,null,null,null,null,null,null,null,null,null,null,null,null,null,null,null,null,null,null,null,"※処理事項",null,null,null,null,"事業者コード",null,null,null,null,null,null,null,null,null,null,null,null,null,null,null,null,null,null,null,null,null,null,null,null,null,null,null,null,null,"処理\n区分",null,null,null,null,null,null,null,null,"申告\n区分"]
[null,"　申告者の氏名又は名称"]
[null,{"$f":"IF(提出用!B5=\"\",\"\",提出用!B5)","v":""},null,null,null,null,null,null,null,null,null,null,null,null,null,null,null,null,null,null,null,null,null,null,null,null,null,null,null,null,null,null,null,null,null,null,null,null,null,null,null,null,null,null,null,null,null,null,null,null,null,null,null,null,null,null,null,null,null,null,null,null,null,null,null,null,null,null,null,{"$f":"IF(提出用!BR5=\"\",\"\",提出用!BR5)","v":""}]
[]
[null,null,null,null,null,null,null,null,null,null,null,null,null,null,null,null,null,null,null,null,null,null,null,null,null,null,null,null,null,null,null,null,null,null,null,null,null,null,null,null,null,null,null,null,null,null,null,null,null,null,null,null,null,null,null,null,null,null,null,null,null,null,null,null,null,null,null,null,null,"予備",null,null,null,null,null,null,null,null,null,null,null,"申告年月日"]
[null,"　個人番号又は法人番号\n　 　    　　↓個人番号の記載に当たっては、左端を空欄とし、ここから記載してください。"]
[null,null,null,null,null,null,null,null,null,null,null,null,null,null,null,null,null,null,null,null,null,null,null,null,null,null,null,null,null,null,null,null,null,null,null,null,null,null,null,null,null,null,null,null,null,null,null,null,null,null,null,null,null,null,null,null,null,null,null,null,null,null,null,null,null,null,null,null,null,1,null,null,null,null,null,3]
[null,{"$f":"IF(提出用!B10=\"\",\"\",提出用!B10)","v":""}]
[]
[null,null,null,null,null,null,null,null,null,null,null,null,null,null,null,null,null,null,null,null,null,null,null,null,null,null,null,null,null,null,null,null,null,null,null,null,null,null,null,null,null,null,null,null,null,null,null,null,null,null,null,null,null,null,null,null,null,null,null,null,null,null,null,null,null,null,null,null,null,null,null,null,null,null,null,null,null,null,null,null,null,null,null,null,null,null,null,null,null,null,null,null,null,null,null,{"$f":"IF(提出用!CR12=\"\",\"\",提出用!CR12)","v":""},null,null,null,null,null,null,null,"枚のうち"]
[null,null,null,null,null,null,null,null,null,null,null,"令和",null,null,{"$f":"IF(提出用!O13=\"\",\"\",提出用!O13)","v":""},null,"年",null,null,null,null,null,{"$f":"IF(提出用!W13=\"\",\"\",提出用!W13)","v":""},null,null,null,null,null,null,null,null,null,null,null,null,"月分"]
[]
[null,null,null,null,null,null,null,null,null,null,null,null,null,null,null,null,null,null,null,null,null,null,null,null,null,null,null,null,null,null,null,null,null,null,null,null,null,null,null,null,null,null,null,null,null,null,null,null,null,null,null,null,null,null,null,null,null,null,null,null,null,null,null,null,null,null,null,null,null,null,null,null,null,null,null,null,null,null,null,null,null,null,null,null,null,null,null,null,null,null,null,null,null,null,null,{"$f":"IF(提出用!CR15=\"\",\"\",提出用!CR15)","v":""},null,null,null,null,null,null,null,"枚目"]
[]
[]
[null,"区市町村名",null,null,null,null,null,null,null,null,null,null,null,"区市町村コード",null,null,null,"売渡し又は消費等の合計数量"]
[]
[]
[null,{"$f":"IF(提出用!B21=\"\",\"\",提出用!B21)","v":""},null,null,null,null,null,null,null,null,null,null,null,{"$f":"IF(ISERROR(VLOOKUP(B21,$DR$100:$DS$163,2,FALSE)),\"\",VLOOKUP(B21,$DR$100:$DS$163,2,FALSE))","v":""},null,null,null,null,null,null,null,null,null,null,null,null,null,null,null,null,null,null,null,null,null,null,null,null,null,null,null,null,null,null,null,null,null,null,null,null,null,null,null,null,null,null,null,null,null,null,null,null,null,null,null,null,null,null,null,{"$f":"IF(提出用!BR21=\"\",\"\",提出用!BR21)","v":""}]
[]
[null,{"$f":"IF(提出用!B23=\"\",\"\",提出用!B23)","v":""},null,null,null,null,null,null,null,null,null,null,null,{"$f":"IF(ISERROR(VLOOKUP(B23,$DR$100:$DS$163,2,FALSE)),\"\",VLOOKUP(B23,$DR$100:$DS$163,2,FALSE))","v":""},null,null,null,null,null,null,null,null,null,null,null,null,null,null,null,null,null,null,null,null,null,null,null,null,null,null,null,null,null,null,null,null,null,null,null,null,null,null,null,null,null,null,null,null,null,null,null,null,null,null,null,null,null,null,null,{"$f":"IF(提出用!BR23=\"\",\"\",提出用!BR23)","v":""}]
[]
[null,{"$f":"IF(提出用!B25=\"\",\"\",提出用!B25)","v":""},null,null,null,null,null,null,null,null,null,null,null,{"$f":"IF(ISERROR(VLOOKUP(B25,$DR$100:$DS$163,2,FALSE)),\"\",VLOOKUP(B25,$DR$100:$DS$163,2,FALSE))","v":""},null,null,null,null,null,null,null,null,null,null,null,null,null,null,null,null,null,null,null,null,null,null,null,null,null,null,null,null,null,null,null,null,null,null,null,null,null,null,null,null,null,null,null,null,null,null,null,null,null,null,null,null,null,null,null,{"$f":"IF(提出用!BR25=\"\",\"\",提出用!BR25)","v":""}]
[]
[null,{"$f":"IF(提出用!B27=\"\",\"\",提出用!B27)","v":""},null,null,null,null,null,null,null,null,null,null,null,{"$f":"IF(ISERROR(VLOOKUP(B27,$DR$100:$DS$163,2,FALSE)),\"\",VLOOKUP(B27,$DR$100:$DS$163,2,FALSE))","v":""},null,null,null,null,null,null,null,null,null,null,null,null,null,null,null,null,null,null,null,null,null,null,null,null,null,null,null,null,null,null,null,null,null,null,null,null,null,null,null,null,null,null,null,null,null,null,null,null,null,null,null,null,null,null,null,{"$f":"IF(提出用!BR27=\"\",\"\",提出用!BR27)","v":""}]
[]
[null,{"$f":"IF(提出用!B29=\"\",\"\",提出用!B29)","v":""},null,null,null,null,null,null,null,null,null,null,null,{"$f":"IF(ISERROR(VLOOKUP(B29,$DR$100:$DS$163,2,FALSE)),\"\",VLOOKUP(B29,$DR$100:$DS$163,2,FALSE))","v":""},null,null,null,null,null,null,null,null,null,null,null,null,null,null,null,null,null,null,null,null,null,null,null,null,null,null,null,null,null,null,null,null,null,null,null,null,null,null,null,null,null,null,null,null,null,null,null,null,null,null,null,null,null,null,null,{"$f":"IF(提出用!BR29=\"\",\"\",提出用!BR29)","v":""}]
[]
[null,{"$f":"IF(提出用!B31=\"\",\"\",提出用!B31)","v":""},null,null,null,null,null,null,null,null,null,null,null,{"$f":"IF(ISERROR(VLOOKUP(B31,$DR$100:$DS$163,2,FALSE)),\"\",VLOOKUP(B31,$DR$100:$DS$163,2,FALSE))","v":""},null,null,null,null,null,null,null,null,null,null,null,null,null,null,null,null,null,null,null,null,null,null,null,null,null,null,null,null,null,null,null,null,null,null,null,null,null,null,null,null,null,null,null,null,null,null,null,null,null,null,null,null,null,null,null,{"$f":"IF(提出用!BR31=\"\",\"\",提出用!BR31)","v":""}]
[]
[null,{"$f":"IF(提出用!B33=\"\",\"\",提出用!B33)","v":""},null,null,null,null,null,null,null,null,null,null,null,{"$f":"IF(ISERROR(VLOOKUP(B33,$DR$100:$DS$163,2,FALSE)),\"\",VLOOKUP(B33,$DR$100:$DS$163,2,FALSE))","v":""},null,null,null,null,null,null,null,null,null,null,null,null,null,null,null,null,null,null,null,null,null,null,null,null,null,null,null,null,null,null,null,null,null,null,null,null,null,null,null,null,null,null,null,null,null,null,null,null,null,null,null,null,null,null,null,{"$f":"IF(提出用!BR33=\"\",\"\",提出用!BR33)","v":""}]
[]
[null,{"$f":"IF(提出用!B35=\"\",\"\",提出用!B35)","v":""},null,null,null,null,null,null,null,null,null,null,null,{"$f":"IF(ISERROR(VLOOKUP(B35,$DR$100:$DS$163,2,FALSE)),\"\",VLOOKUP(B35,$DR$100:$DS$163,2,FALSE))","v":""},null,null,null,null,null,null,null,null,null,null,null,null,null,null,null,null,null,null,null,null,null,null,null,null,null,null,null,null,null,null,null,null,null,null,null,null,null,null,null,null,null,null,null,null,null,null,null,null,null,null,null,null,null,null,null,{"$f":"IF(提出用!BR35=\"\",\"\",提出用!BR35)","v":""}]
[]
[null,{"$f":"IF(提出用!B37=\"\",\"\",提出用!B37)","v":""},null,null,null,null,null,null,null,null,null,null,null,{"$f":"IF(ISERROR(VLOOKUP(B37,$DR$100:$DS$163,2,FALSE)),\"\",VLOOKUP(B37,$DR$100:$DS$163,2,FALSE))","v":""},null,null,null,null,null,null,null,null,null,null,null,null,null,null,null,null,null,null,null,null,null,null,null,null,null,null,null,null,null,null,null,null,null,null,null,null,null,null,null,null,null,null,null,null,null,null,null,null,null,null,null,null,null,null,null,{"$f":"IF(提出用!BR37=\"\",\"\",提出用!BR37)","v":""}]
[]
[null,{"$f":"IF(提出用!B39=\"\",\"\",提出用!B39)","v":""},null,null,null,null,null,null,null,null,null,null,null,{"$f":"IF(ISERROR(VLOOKUP(B39,$DR$100:$DS$163,2,FALSE)),\"\",VLOOKUP(B39,$DR$100:$DS$163,2,FALSE))","v":""},null,null,null,null,null,null,null,null,null,null,null,null,null,null,null,null,null,null,null,null,null,null,null,null,null,null,null,null,null,null,null,null,null,null,null,null,null,null,null,null,null,null,null,null,null,null,null,null,null,null,null,null,null,null,null,{"$f":"IF(提出用!BR39=\"\",\"\",提出用!BR39)","v":""}]
[]
[null,{"$f":"IF(提出用!B41=\"\",\"\",提出用!B41)","v":""},null,null,null,null,null,null,null,null,null,null,null,{"$f":"IF(ISERROR(VLOOKUP(B41,$DR$100:$DS$163,2,FALSE)),\"\",VLOOKUP(B41,$DR$100:$DS$163,2,FALSE))","v":""},null,null,null,null,null,null,null,null,null,null,null,null,null,null,null,null,null,null,null,null,null,null,null,null,null,null,null,null,null,null,null,null,null,null,null,null,null,null,null,null,null,null,null,null,null,null,null,null,null,null,null,null,null,null,null,{"$f":"IF(提出用!BR41=\"\",\"\",提出用!BR41)","v":""}]
[]
[null,{"$f":"IF(提出用!B43=\"\",\"\",提出用!B43)","v":""},null,null,null,null,null,null,null,null,null,null,null,{"$f":"IF(ISERROR(VLOOKUP(B43,$DR$100:$DS$163,2,FALSE)),\"\",VLOOKUP(B43,$DR$100:$DS$163,2,FALSE))","v":""},null,null,null,null,null,null,null,null,null,null,null,null,null,null,null,null,null,null,null,null,null,null,null,null,null,null,null,null,null,null,null,null,null,null,null,null,null,null,null,null,null,null,null,null,null,null,null,null,null,null,null,null,null,null,null,{"$f":"IF(提出用!BR43=\"\",\"\",提出用!BR43)","v":""}]
[]
[null,{"$f":"IF(提出用!B45=\"\",\"\",提出用!B45)","v":""},null,null,null,null,null,null,null,null,null,null,null,{"$f":"IF(ISERROR(VLOOKUP(B45,$DR$100:$DS$163,2,FALSE)),\"\",VLOOKUP(B45,$DR$100:$DS$163,2,FALSE))","v":""},null,null,null,null,null,null,null,null,null,null,null,null,null,null,null,null,null,null,null,null,null,null,null,null,null,null,null,null,null,null,null,null,null,null,null,null,null,null,null,null,null,null,null,null,null,null,null,null,null,null,null,null,null,null,null,{"$f":"IF(提出用!BR45=\"\",\"\",提出用!BR45)","v":""}]
[]
[null,{"$f":"IF(提出用!B47=\"\",\"\",提出用!B47)","v":""},null,null,null,null,null,null,null,null,null,null,null,{"$f":"IF(ISERROR(VLOOKUP(B47,$DR$100:$DS$163,2,FALSE)),\"\",VLOOKUP(B47,$DR$100:$DS$163,2,FALSE))","v":""},null,null,null,null,null,null,null,null,null,null,null,null,null,null,null,null,null,null,null,null,null,null,null,null,null,null,null,null,null,null,null,null,null,null,null,null,null,null,null,null,null,null,null,null,null,null,null,null,null,null,null,null,null,null,null,{"$f":"IF(提出用!BR47=\"\",\"\",提出用!BR47)","v":""}]
[]
[null,{"$f":"IF(提出用!B49=\"\",\"\",提出用!B49)","v":""},null,null,null,null,null,null,null,null,null,null,null,{"$f":"IF(ISERROR(VLOOKUP(B49,$DR$100:$DS$163,2,FALSE)),\"\",VLOOKUP(B49,$DR$100:$DS$163,2,FALSE))","v":""},null,null,null,null,null,null,null,null,null,null,null,null,null,null,null,null,null,null,null,null,null,null,null,null,null,null,null,null,null,null,null,null,null,null,null,null,null,null,null,null,null,null,null,null,null,null,null,null,null,null,null,null,null,null,null,{"$f":"IF(提出用!BR49=\"\",\"\",提出用!BR49)","v":""}]
[]
[null,{"$f":"IF(提出用!B51=\"\",\"\",提出用!B51)","v":""},null,null,null,null,null,null,null,null,null,null,null,{"$f":"IF(ISERROR(VLOOKUP(B51,$DR$100:$DS$163,2,FALSE)),\"\",VLOOKUP(B51,$DR$100:$DS$163,2,FALSE))","v":""},null,null,null,null,null,null,null,null,null,null,null,null,null,null,null,null,null,null,null,null,null,null,null,null,null,null,null,null,null,null,null,null,null,null,null,null,null,null,null,null,null,null,null,null,null,null,null,null,null,null,null,null,null,null,null,{"$f":"IF(提出用!BR51=\"\",\"\",提出用!BR51)","v":""}]
[]
[null,{"$f":"IF(提出用!B53=\"\",\"\",提出用!B53)","v":""},null,null,null,null,null,null,null,null,null,null,null,{"$f":"IF(ISERROR(VLOOKUP(B53,$DR$100:$DS$163,2,FALSE)),\"\",VLOOKUP(B53,$DR$100:$DS$163,2,FALSE))","v":""},null,null,null,null,null,null,null,null,null,null,null,null,null,null,null,null,null,null,null,null,null,null,null,null,null,null,null,null,null,null,null,null,null,null,null,null,null,null,null,null,null,null,null,null,null,null,null,null,null,null,null,null,null,null,null,{"$f":"IF(提出用!BR53=\"\",\"\",提出用!BR53)","v":""}]
[]
[null,{"$f":"IF(提出用!B55=\"\",\"\",提出用!B55)","v":""},null,null,null,null,null,null,null,null,null,null,null,{"$f":"IF(ISERROR(VLOOKUP(B55,$DR$100:$DS$163,2,FALSE)),\"\",VLOOKUP(B55,$DR$100:$DS$163,2,FALSE))","v":""},null,null,null,null,null,null,null,null,null,null,null,null,null,null,null,null,null,null,null,null,null,null,null,null,null,null,null,null,null,null,null,null,null,null,null,null,null,null,null,null,null,null,null,null,null,null,null,null,null,null,null,null,null,null,null,{"$f":"IF(提出用!BR55=\"\",\"\",提出用!BR55)","v":""}]
[]
[null,{"$f":"IF(提出用!B57=\"\",\"\",提出用!B57)","v":""},null,null,null,null,null,null,null,null,null,null,null,{"$f":"IF(ISERROR(VLOOKUP(B57,$DR$100:$DS$163,2,FALSE)),\"\",VLOOKUP(B57,$DR$100:$DS$163,2,FALSE))","v":""},null,null,null,null,null,null,null,null,null,null,null,null,null,null,null,null,null,null,null,null,null,null,null,null,null,null,null,null,null,null,null,null,null,null,null,null,null,null,null,null,null,null,null,null,null,null,null,null,null,null,null,null,null,null,null,{"$f":"IF(提出用!BR57=\"\",\"\",提出用!BR57)","v":""}]
[]
[null,{"$f":"IF(提出用!B59=\"\",\"\",提出用!B59)","v":""},null,null,null,null,null,null,null,null,null,null,null,{"$f":"IF(ISERROR(VLOOKUP(B59,$DR$100:$DS$163,2,FALSE)),\"\",VLOOKUP(B59,$DR$100:$DS$163,2,FALSE))","v":""},null,null,null,null,null,null,null,null,null,null,null,null,null,null,null,null,null,null,null,null,null,null,null,null,null,null,null,null,null,null,null,null,null,null,null,null,null,null,null,null,null,null,null,null,null,null,null,null,null,null,null,null,null,null,null,{"$f":"IF(提出用!BR59=\"\",\"\",提出用!BR59)","v":""}]
[]
[null,{"$f":"IF(提出用!B61=\"\",\"\",提出用!B61)","v":""},null,null,null,null,null,null,null,null,null,null,null,{"$f":"IF(ISERROR(VLOOKUP(B61,$DR$100:$DS$163,2,FALSE)),\"\",VLOOKUP(B61,$DR$100:$DS$163,2,FALSE))","v":""},null,null,null,null,null,null,null,null,null,null,null,null,null,null,null,null,null,null,null,null,null,null,null,null,null,null,null,null,null,null,null,null,null,null,null,null,null,null,null,null,null,null,null,null,null,null,null,null,null,null,null,null,null,null,null,{"$f":"IF(提出用!BR61=\"\",\"\",提出用!BR61)","v":""}]
[]
[null,{"$f":"IF(提出用!B63=\"\",\"\",提出用!B63)","v":""},null,null,null,null,null,null,null,null,null,null,null,{"$f":"IF(ISERROR(VLOOKUP(B63,$DR$100:$DS$163,2,FALSE)),\"\",VLOOKUP(B63,$DR$100:$DS$163,2,FALSE))","v":""},null,null,null,null,null,null,null,null,null,null,null,null,null,null,null,null,null,null,null,null,null,null,null,null,null,null,null,null,null,null,null,null,null,null,null,null,null,null,null,null,null,null,null,null,null,null,null,null,null,null,null,null,null,null,null,{"$f":"IF(提出用!BR63=\"\",\"\",提出用!BR63)","v":""}]
[]
[null,{"$f":"IF(提出用!B65=\"\",\"\",提出用!B65)","v":""},null,null,null,null,null,null,null,null,null,null,null,{"$f":"IF(ISERROR(VLOOKUP(B65,$DR$100:$DS$163,2,FALSE)),\"\",VLOOKUP(B65,$DR$100:$DS$163,2,FALSE))","v":""},null,null,null,null,null,null,null,null,null,null,null,null,null,null,null,null,null,null,null,null,null,null,null,null,null,null,null,null,null,null,null,null,null,null,null,null,null,null,null,null,null,null,null,null,null,null,null,null,null,null,null,null,null,null,null,{"$f":"IF(提出用!BR65=\"\",\"\",提出用!BR65)","v":""}]
[]
[null,{"$f":"IF(提出用!B67=\"\",\"\",提出用!B67)","v":""},null,null,null,null,null,null,null,null,null,null,null,{"$f":"IF(ISERROR(VLOOKUP(B67,$DR$100:$DS$163,2,FALSE)),\"\",VLOOKUP(B67,$DR$100:$DS$163,2,FALSE))","v":""},null,null,null,null,null,null,null,null,null,null,null,null,null,null,null,null,null,null,null,null,null,null,null,null,null,null,null,null,null,null,null,null,null,null,null,null,null,null,null,null,null,null,null,null,null,null,null,null,null,null,null,null,null,null,null,{"$f":"IF(提出用!BR67=\"\",\"\",提出用!BR67)","v":""}]
[]
[]
[]
[]
[]
[]
[]
[]
[]
[]
[]
[]
[]
[]
[]
[]
[]
[]
[]
[]
[]
[]
[]
[]
[]
[]
[]
[]
[]
[]
[]
[]
[]
[null,null,null,null,null,null,null,null,null,null,null,null,null,null,null,null,null,null,null,null,null,null,null,null,null,null,null,null,null,null,null,null,null,null,null,null,null,null,null,null,null,null,null,null,null,null,null,null,null,null,null,null,null,null,null,null,null,null,null,null,null,null,null,null,null,null,null,null,null,null,null,null,null,null,null,null,null,null,null,null,null,null,null,null,null,null,null,null,null,null,null,null,null,null,null,null,null,null,null,null,null,null,null,null,null,null,null,null,null,null,null,null,null,null,null,null,null,null,null,null,null,"千代田区",1016]
[null,null,null,null,null,null,null,null,null,null,null,null,null,null,null,null,null,null,null,null,null,null,null,null,null,null,null,null,null,null,null,null,null,null,null,null,null,null,null,null,null,null,null,null,null,null,null,null,null,null,null,null,null,null,null,null,null,null,null,null,null,null,null,null,null,null,null,null,null,null,null,null,null,null,null,null,null,null,null,null,null,null,null,null,null,null,null,null,null,null,null,null,null,null,null,null,null,null,null,null,null,null,null,null,null,null,null,null,null,null,null,null,null,null,null,null,null,null,null,null,null,"中央区",1024]
[null,null,null,null,null,null,null,null,null,null,null,null,null,null,null,null,null,null,null,null,null,null,null,null,null,null,null,null,null,null,null,null,null,null,null,null,null,null,null,null,null,null,null,null,null,null,null,null,null,null,null,null,null,null,null,null,null,null,null,null,null,null,null,null,null,null,null,null,null,null,null,null,null,null,null,null,null,null,null,null,null,null,null,null,null,null,null,null,null,null,null,null,null,null,null,null,null,null,null,null,null,null,null,null,null,null,null,null,null,null,null,null,null,null,null,null,null,null,null,null,null,"港区",1032]
[null,null,null,null,null,null,null,null,null,null,null,null,null,null,null,null,null,null,null,null,null,null,null,null,null,null,null,null,null,null,null,null,null,null,null,null,null,null,null,null,null,null,null,null,null,null,null,null,null,null,null,null,null,null,null,null,null,null,null,null,null,null,null,null,null,null,null,null,null,null,null,null,null,null,null,null,null,null,null,null,null,null,null,null,null,null,null,null,null,null,null,null,null,null,null,null,null,null,null,null,null,null,null,null,null,null,null,null,null,null,null,null,null,null,null,null,null,null,null,null,null,"新宿区",1041]
[null,null,null,null,null,null,null,null,null,null,null,null,null,null,null,null,null,null,null,null,null,null,null,null,null,null,null,null,null,null,null,null,null,null,null,null,null,null,null,null,null,null,null,null,null,null,null,null,null,null,null,null,null,null,null,null,null,null,null,null,null,null,null,null,null,null,null,null,null,null,null,null,null,null,null,null,null,null,null,null,null,null,null,null,null,null,null,null,null,null,null,null,null,null,null,null,null,null,null,null,null,null,null,null,null,null,null,null,null,null,null,null,null,null,null,null,null,null,null,null,null,"文京区",1059]
[null,null,null,null,null,null,null,null,null,null,null,null,null,null,null,null,null,null,null,null,null,null,null,null,null,null,null,null,null,null,null,null,null,null,null,null,null,null,null,null,null,null,null,null,null,null,null,null,null,null,null,null,null,null,null,null,null,null,null,null,null,null,null,null,null,null,null,null,null,null,null,null,null,null,null,null,null,null,null,null,null,null,null,null,null,null,null,null,null,null,null,null,null,null,null,null,null,null,null,null,null,null,null,null,null,null,null,null,null,null,null,null,null,null,null,null,null,null,null,null,null,"台東区",1067]
[null,null,null,null,null,null,null,null,null,null,null,null,null,null,null,null,null,null,null,null,null,null,null,null,null,null,null,null,null,null,null,null,null,null,null,null,null,null,null,null,null,null,null,null,null,null,null,null,null,null,null,null,null,null,null,null,null,null,null,null,null,null,null,null,null,null,null,null,null,null,null,null,null,null,null,null,null,null,null,null,null,null,null,null,null,null,null,null,null,null,null,null,null,null,null,null,null,null,null,null,null,null,null,null,null,null,null,null,null,null,null,null,null,null,null,null,null,null,null,null,null,"墨田区",1075]
[null,null,null,null,null,null,null,null,null,null,null,null,null,null,null,null,null,null,null,null,null,null,null,null,null,null,null,null,null,null,null,null,null,null,null,null,null,null,null,null,null,null,null,null,null,null,null,null,null,null,null,null,null,null,null,null,null,null,null,null,null,null,null,null,null,null,null,null,null,null,null,null,null,null,null,null,null,null,null,null,null,null,null,null,null,null,null,null,null,null,null,null,null,null,null,null,null,null,null,null,null,null,null,null,null,null,null,null,null,null,null,null,null,null,null,null,null,null,null,null,null,"江東区",1083]
[null,null,null,null,null,null,null,null,null,null,null,null,null,null,null,null,null,null,null,null,null,null,null,null,null,null,null,null,null,null,null,null,null,null,null,null,null,null,null,null,null,null,null,null,null,null,null,null,null,null,null,null,null,null,null,null,null,null,null,null,null,null,null,null,null,null,null,null,null,null,null,null,null,null,null,null,null,null,null,null,null,null,null,null,null,null,null,null,null,null,null,null,null,null,null,null,null,null,null,null,null,null,null,null,null,null,null,null,null,null,null,null,null,null,null,null,null,null,null,null,null,"品川区",1091]
[null,null,null,null,null,null,null,null,null,null,null,null,null,null,null,null,null,null,null,null,null,null,null,null,null,null,null,null,null,null,null,null,null,null,null,null,null,null,null,null,null,null,null,null,null,null,null,null,null,null,null,null,null,null,null,null,null,null,null,null,null,null,null,null,null,null,null,null,null,null,null,null,null,null,null,null,null,null,null,null,null,null,null,null,null,null,null,null,null,null,null,null,null,null,null,null,null,null,null,null,null,null,null,null,null,null,null,null,null,null,null,null,null,null,null,null,null,null,null,null,null,"目黒区",1105]
[null,null,null,null,null,null,null,null,null,null,null,null,null,null,null,null,null,null,null,null,null,null,null,null,null,null,null,null,null,null,null,null,null,null,null,null,null,null,null,null,null,null,null,null,null,null,null,null,null,null,null,null,null,null,null,null,null,null,null,null,null,null,null,null,null,null,null,null,null,null,null,null,null,null,null,null,null,null,null,null,null,null,null,null,null,null,null,null,null,null,null,null,null,null,null,null,null,null,null,null,null,null,null,null,null,null,null,null,null,null,null,null,null,null,null,null,null,null,null,null,null,"大田区",1113]
[null,null,null,null,null,null,null,null,null,null,null,null,null,null,null,null,null,null,null,null,null,null,null,null,null,null,null,null,null,null,null,null,null,null,null,null,null,null,null,null,null,null,null,null,null,null,null,null,null,null,null,null,null,null,null,null,null,null,null,null,null,null,null,null,null,null,null,null,null,null,null,null,null,null,null,null,null,null,null,null,null,null,null,null,null,null,null,null,null,null,null,null,null,null,null,null,null,null,null,null,null,null,null,null,null,null,null,null,null,null,null,null,null,null,null,null,null,null,null,null,null,"世田谷区",1121]
[null,null,null,null,null,null,null,null,null,null,null,null,null,null,null,null,null,null,null,null,null,null,null,null,null,null,null,null,null,null,null,null,null,null,null,null,null,null,null,null,null,null,null,null,null,null,null,null,null,null,null,null,null,null,null,null,null,null,null,null,null,null,null,null,null,null,null,null,null,null,null,null,null,null,null,null,null,null,null,null,null,null,null,null,null,null,null,null,null,null,null,null,null,null,null,null,null,null,null,null,null,null,null,null,null,null,null,null,null,null,null,null,null,null,null,null,null,null,null,null,null,"渋谷区",1130]
[null,null,null,null,null,null,null,null,null,null,null,null,null,null,null,null,null,null,null,null,null,null,null,null,null,null,null,null,null,null,null,null,null,null,null,null,null,null,null,null,null,null,null,null,null,null,null,null,null,null,null,null,null,null,null,null,null,null,null,null,null,null,null,null,null,null,null,null,null,null,null,null,null,null,null,null,null,null,null,null,null,null,null,null,null,null,null,null,null,null,null,null,null,null,null,null,null,null,null,null,null,null,null,null,null,null,null,null,null,null,null,null,null,null,null,null,null,null,null,null,null,"中野区",1148]
[null,null,null,null,null,null,null,null,null,null,null,null,null,null,null,null,null,null,null,null,null,null,null,null,null,null,null,null,null,null,null,null,null,null,null,null,null,null,null,null,null,null,null,null,null,null,null,null,null,null,null,null,null,null,null,null,null,null,null,null,null,null,null,null,null,null,null,null,null,null,null,null,null,null,null,null,null,null,null,null,null,null,null,null,null,null,null,null,null,null,null,null,null,null,null,null,null,null,null,null,null,null,null,null,null,null,null,null,null,null,null,null,null,null,null,null,null,null,null,null,null,"杉並区",1156]
[null,null,null,null,null,null,null,null,null,null,null,null,null,null,null,null,null,null,null,null,null,null,null,null,null,null,null,null,null,null,null,null,null,null,null,null,null,null,null,null,null,null,null,null,null,null,null,null,null,null,null,null,null,null,null,null,null,null,null,null,null,null,null,null,null,null,null,null,null,null,null,null,null,null,null,null,null,null,null,null,null,null,null,null,null,null,null,null,null,null,null,null,null,null,null,null,null,null,null,null,null,null,null,null,null,null,null,null,null,null,null,null,null,null,null,null,null,null,null,null,null,"豊島区",1164]
[null,null,null,null,null,null,null,null,null,null,null,null,null,null,null,null,null,null,null,null,null,null,null,null,null,null,null,null,null,null,null,null,null,null,null,null,null,null,null,null,null,null,null,null,null,null,null,null,null,null,null,null,null,null,null,null,null,null,null,null,null,null,null,null,null,null,null,null,null,null,null,null,null,null,null,null,null,null,null,null,null,null,null,null,null,null,null,null,null,null,null,null,null,null,null,null,null,null,null,null,null,null,null,null,null,null,null,null,null,null,null,null,null,null,null,null,null,null,null,null,null,"北区",1172]
[null,null,null,null,null,null,null,null,null,null,null,null,null,null,null,null,null,null,null,null,null,null,null,null,null,null,null,null,null,null,null,null,null,null,null,null,null,null,null,null,null,null,null,null,null,null,null,null,null,null,null,null,null,null,null,null,null,null,null,null,null,null,null,null,null,null,null,null,null,null,null,null,null,null,null,null,null,null,null,null,null,null,null,null,null,null,null,null,null,null,null,null,null,null,null,null,null,null,null,null,null,null,null,null,null,null,null,null,null,null,null,null,null,null,null,null,null,null,null,null,null,"荒川区",1181]
[null,null,null,null,null,null,null,null,null,null,null,null,null,null,null,null,null,null,null,null,null,null,null,null,null,null,null,null,null,null,null,null,null,null,null,null,null,null,null,null,null,null,null,null,null,null,null,null,null,null,null,null,null,null,null,null,null,null,null,null,null,null,null,null,null,null,null,null,null,null,null,null,null,null,null,null,null,null,null,null,null,null,null,null,null,null,null,null,null,null,null,null,null,null,null,null,null,null,null,null,null,null,null,null,null,null,null,null,null,null,null,null,null,null,null,null,null,null,null,null,null,"板橋区",1199]
[null,null,null,null,null,null,null,null,null,null,null,null,null,null,null,null,null,null,null,null,null,null,null,null,null,null,null,null,null,null,null,null,null,null,null,null,null,null,null,null,null,null,null,null,null,null,null,null,null,null,null,null,null,null,null,null,null,null,null,null,null,null,null,null,null,null,null,null,null,null,null,null,null,null,null,null,null,null,null,null,null,null,null,null,null,null,null,null,null,null,null,null,null,null,null,null,null,null,null,null,null,null,null,null,null,null,null,null,null,null,null,null,null,null,null,null,null,null,null,null,null,"練馬区",1202]
[null,null,null,null,null,null,null,null,null,null,null,null,null,null,null,null,null,null,null,null,null,null,null,null,null,null,null,null,null,null,null,null,null,null,null,null,null,null,null,null,null,null,null,null,null,null,null,null,null,null,null,null,null,null,null,null,null,null,null,null,null,null,null,null,null,null,null,null,null,null,null,null,null,null,null,null,null,null,null,null,null,null,null,null,null,null,null,null,null,null,null,null,null,null,null,null,null,null,null,null,null,null,null,null,null,null,null,null,null,null,null,null,null,null,null,null,null,null,null,null,null,"足立区",1211]
[null,null,null,null,null,null,null,null,null,null,null,null,null,null,null,null,null,null,null,null,null,null,null,null,null,null,null,null,null,null,null,null,null,null,null,null,null,null,null,null,null,null,null,null,null,null,null,null,null,null,null,null,null,null,null,null,null,null,null,null,null,null,null,null,null,null,null,null,null,null,null,null,null,null,null,null,null,null,null,null,null,null,null,null,null,null,null,null,null,null,null,null,null,null,null,null,null,null,null,null,null,null,null,null,null,null,null,null,null,null,null,null,null,null,null,null,null,null,null,null,null,"葛飾区",1229]
[null,null,null,null,null,null,null,null,null,null,null,null,null,null,null,null,null,null,null,null,null,null,null,null,null,null,null,null,null,null,null,null,null,null,null,null,null,null,null,null,null,null,null,null,null,null,null,null,null,null,null,null,null,null,null,null,null,null,null,null,null,null,null,null,null,null,null,null,null,null,null,null,null,null,null,null,null,null,null,null,null,null,null,null,null,null,null,null,null,null,null,null,null,null,null,null,null,null,null,null,null,null,null,null,null,null,null,null,null,null,null,null,null,null,null,null,null,null,null,null,null,"江戸川区",1237]
[null,null,null,null,null,null,null,null,null,null,null,null,null,null,null,null,null,null,null,null,null,null,null,null,null,null,null,null,null,null,null,null,null,null,null,null,null,null,null,null,null,null,null,null,null,null,null,null,null,null,null,null,null,null,null,null,null,null,null,null,null,null,null,null,null,null,null,null,null,null,null,null,null,null,null,null,null,null,null,null,null,null,null,null,null,null,null,null,null,null,null,null,null,null,null,null,null,null,null,null,null,null,null,null,null,null,null,null,null,null,null,null,null,null,null,null,null,null,null,null,null,"八王子市",2012]
[null,null,null,null,null,null,null,null,null,null,null,null,null,null,null,null,null,null,null,null,null,null,null,null,null,null,null,null,null,null,null,null,null,null,null,null,null,null,null,null,null,null,null,null,null,null,null,null,null,null,null,null,null,null,null,null,null,null,null,null,null,null,null,null,null,null,null,null,null,null,null,null,null,null,null,null,null,null,null,null,null,null,null,null,null,null,null,null,null,null,null,null,null,null,null,null,null,null,null,null,null,null,null,null,null,null,null,null,null,null,null,null,null,null,null,null,null,null,null,null,null,"立川市",2021]
[null,null,null,null,null,null,null,null,null,null,null,null,null,null,null,null,null,null,null,null,null,null,null,null,null,null,null,null,null,null,null,null,null,null,null,null,null,null,null,null,null,null,null,null,null,null,null,null,null,null,null,null,null,null,null,null,null,null,null,null,null,null,null,null,null,null,null,null,null,null,null,null,null,null,null,null,null,null,null,null,null,null,null,null,null,null,null,null,null,null,null,null,null,null,null,null,null,null,null,null,null,null,null,null,null,null,null,null,null,null,null,null,null,null,null,null,null,null,null,null,null,"武蔵野市",2039]
[null,null,null,null,null,null,null,null,null,null,null,null,null,null,null,null,null,null,null,null,null,null,null,null,null,null,null,null,null,null,null,null,null,null,null,null,null,null,null,null,null,null,null,null,null,null,null,null,null,null,null,null,null,null,null,null,null,null,null,null,null,null,null,null,null,null,null,null,null,null,null,null,null,null,null,null,null,null,null,null,null,null,null,null,null,null,null,null,null,null,null,null,null,null,null,null,null,null,null,null,null,null,null,null,null,null,null,null,null,null,null,null,null,null,null,null,null,null,null,null,null,"三鷹市",2047]
[null,null,null,null,null,null,null,null,null,null,null,null,null,null,null,null,null,null,null,null,null,null,null,null,null,null,null,null,null,null,null,null,null,null,null,null,null,null,null,null,null,null,null,null,null,null,null,null,null,null,null,null,null,null,null,null,null,null,null,null,null,null,null,null,null,null,null,null,null,null,null,null,null,null,null,null,null,null,null,null,null,null,null,null,null,null,null,null,null,null,null,null,null,null,null,null,null,null,null,null,null,null,null,null,null,null,null,null,null,null,null,null,null,null,null,null,null,null,null,null,null,"青梅市",2056]
[null,null,null,null,null,null,null,null,null,null,null,null,null,null,null,null,null,null,null,null,null,null,null,null,null,null,null,null,null,null,null,null,null,null,null,null,null,null,null,null,null,null,null,null,null,null,null,null,null,null,null,null,null,null,null,null,null,null,null,null,null,null,null,null,null,null,null,null,null,null,null,null,null,null,null,null,null,null,null,null,null,null,null,null,null,null,null,null,null,null,null,null,null,null,null,null,null,null,null,null,null,null,null,null,null,null,null,null,null,null,null,null,null,null,null,null,null,null,null,null,null,"府中市",2063]
[null,null,null,null,null,null,null,null,null,null,null,null,null,null,null,null,null,null,null,null,null,null,null,null,null,null,null,null,null,null,null,null,null,null,null,null,null,null,null,null,null,null,null,null,null,null,null,null,null,null,null,null,null,null,null,null,null,null,null,null,null,null,null,null,null,null,null,null,null,null,null,null,null,null,null,null,null,null,null,null,null,null,null,null,null,null,null,null,null,null,null,null,null,null,null,null,null,null,null,null,null,null,null,null,null,null,null,null,null,null,null,null,null,null,null,null,null,null,null,null,null,"昭島市",2071]
[null,null,null,null,null,null,null,null,null,null,null,null,null,null,null,null,null,null,null,null,null,null,null,null,null,null,null,null,null,null,null,null,null,null,null,null,null,null,null,null,null,null,null,null,null,null,null,null,null,null,null,null,null,null,null,null,null,null,null,null,null,null,null,null,null,null,null,null,null,null,null,null,null,null,null,null,null,null,null,null,null,null,null,null,null,null,null,null,null,null,null,null,null,null,null,null,null,null,null,null,null,null,null,null,null,null,null,null,null,null,null,null,null,null,null,null,null,null,null,null,null,"調布市",2080]
[null,null,null,null,null,null,null,null,null,null,null,null,null,null,null,null,null,null,null,null,null,null,null,null,null,null,null,null,null,null,null,null,null,null,null,null,null,null,null,null,null,null,null,null,null,null,null,null,null,null,null,null,null,null,null,null,null,null,null,null,null,null,null,null,null,null,null,null,null,null,null,null,null,null,null,null,null,null,null,null,null,null,null,null,null,null,null,null,null,null,null,null,null,null,null,null,null,null,null,null,null,null,null,null,null,null,null,null,null,null,null,null,null,null,null,null,null,null,null,null,null,"町田市",2098]
[null,null,null,null,null,null,null,null,null,null,null,null,null,null,null,null,null,null,null,null,null,null,null,null,null,null,null,null,null,null,null,null,null,null,null,null,null,null,null,null,null,null,null,null,null,null,null,null,null,null,null,null,null,null,null,null,null,null,null,null,null,null,null,null,null,null,null,null,null,null,null,null,null,null,null,null,null,null,null,null,null,null,null,null,null,null,null,null,null,null,null,null,null,null,null,null,null,null,null,null,null,null,null,null,null,null,null,null,null,null,null,null,null,null,null,null,null,null,null,null,null,"小金井市",2101]
[null,null,null,null,null,null,null,null,null,null,null,null,null,null,null,null,null,null,null,null,null,null,null,null,null,null,null,null,null,null,null,null,null,null,null,null,null,null,null,null,null,null,null,null,null,null,null,null,null,null,null,null,null,null,null,null,null,null,null,null,null,null,null,null,null,null,null,null,null,null,null,null,null,null,null,null,null,null,null,null,null,null,null,null,null,null,null,null,null,null,null,null,null,null,null,null,null,null,null,null,null,null,null,null,null,null,null,null,null,null,null,null,null,null,null,null,null,null,null,null,null,"小平市",2110]
[null,null,null,null,null,null,null,null,null,null,null,null,null,null,null,null,null,null,null,null,null,null,null,null,null,null,null,null,null,null,null,null,null,null,null,null,null,null,null,null,null,null,null,null,null,null,null,null,null,null,null,null,null,null,null,null,null,null,null,null,null,null,null,null,null,null,null,null,null,null,null,null,null,null,null,null,null,null,null,null,null,null,null,null,null,null,null,null,null,null,null,null,null,null,null,null,null,null,null,null,null,null,null,null,null,null,null,null,null,null,null,null,null,null,null,null,null,null,null,null,null,"日野市",2128]
[null,null,null,null,null,null,null,null,null,null,null,null,null,null,null,null,null,null,null,null,null,null,null,null,null,null,null,null,null,null,null,null,null,null,null,null,null,null,null,null,null,null,null,null,null,null,null,null,null,null,null,null,null,null,null,null,null,null,null,null,null,null,null,null,null,null,null,null,null,null,null,null,null,null,null,null,null,null,null,null,null,null,null,null,null,null,null,null,null,null,null,null,null,null,null,null,null,null,null,null,null,null,null,null,null,null,null,null,null,null,null,null,null,null,null,null,null,null,null,null,null,"東村山市",2136]
[null,null,null,null,null,null,null,null,null,null,null,null,null,null,null,null,null,null,null,null,null,null,null,null,null,null,null,null,null,null,null,null,null,null,null,null,null,null,null,null,null,null,null,null,null,null,null,null,null,null,null,null,null,null,null,null,null,null,null,null,null,null,null,null,null,null,null,null,null,null,null,null,null,null,null,null,null,null,null,null,null,null,null,null,null,null,null,null,null,null,null,null,null,null,null,null,null,null,null,null,null,null,null,null,null,null,null,null,null,null,null,null,null,null,null,null,null,null,null,null,null,"国分寺市",2144]
[null,null,null,null,null,null,null,null,null,null,null,null,null,null,null,null,null,null,null,null,null,null,null,null,null,null,null,null,null,null,null,null,null,null,null,null,null,null,null,null,null,null,null,null,null,null,null,null,null,null,null,null,null,null,null,null,null,null,null,null,null,null,null,null,null,null,null,null,null,null,null,null,null,null,null,null,null,null,null,null,null,null,null,null,null,null,null,null,null,null,null,null,null,null,null,null,null,null,null,null,null,null,null,null,null,null,null,null,null,null,null,null,null,null,null,null,null,null,null,null,null,"国立市",2152]
[null,null,null,null,null,null,null,null,null,null,null,null,null,null,null,null,null,null,null,null,null,null,null,null,null,null,null,null,null,null,null,null,null,null,null,null,null,null,null,null,null,null,null,null,null,null,null,null,null,null,null,null,null,null,null,null,null,null,null,null,null,null,null,null,null,null,null,null,null,null,null,null,null,null,null,null,null,null,null,null,null,null,null,null,null,null,null,null,null,null,null,null,null,null,null,null,null,null,null,null,null,null,null,null,null,null,null,null,null,null,null,null,null,null,null,null,null,null,null,null,null,"福生市",2187]
[null,null,null,null,null,null,null,null,null,null,null,null,null,null,null,null,null,null,null,null,null,null,null,null,null,null,null,null,null,null,null,null,null,null,null,null,null,null,null,null,null,null,null,null,null,null,null,null,null,null,null,null,null,null,null,null,null,null,null,null,null,null,null,null,null,null,null,null,null,null,null,null,null,null,null,null,null,null,null,null,null,null,null,null,null,null,null,null,null,null,null,null,null,null,null,null,null,null,null,null,null,null,null,null,null,null,null,null,null,null,null,null,null,null,null,null,null,null,null,null,null,"狛江市",2195]
[null,null,null,null,null,null,null,null,null,null,null,null,null,null,null,null,null,null,null,null,null,null,null,null,null,null,null,null,null,null,null,null,null,null,null,null,null,null,null,null,null,null,null,null,null,null,null,null,null,null,null,null,null,null,null,null,null,null,null,null,null,null,null,null,null,null,null,null,null,null,null,null,null,null,null,null,null,null,null,null,null,null,null,null,null,null,null,null,null,null,null,null,null,null,null,null,null,null,null,null,null,null,null,null,null,null,null,null,null,null,null,null,null,null,null,null,null,null,null,null,null,"東大和市",2209]
[null,null,null,null,null,null,null,null,null,null,null,null,null,null,null,null,null,null,null,null,null,null,null,null,null,null,null,null,null,null,null,null,null,null,null,null,null,null,null,null,null,null,null,null,null,null,null,null,null,null,null,null,null,null,null,null,null,null,null,null,null,null,null,null,null,null,null,null,null,null,null,null,null,null,null,null,null,null,null,null,null,null,null,null,null,null,null,null,null,null,null,null,null,null,null,null,null,null,null,null,null,null,null,null,null,null,null,null,null,null,null,null,null,null,null,null,null,null,null,null,null,"清瀬市",2217]
[null,null,null,null,null,null,null,null,null,null,null,null,null,null,null,null,null,null,null,null,null,null,null,null,null,null,null,null,null,null,null,null,null,null,null,null,null,null,null,null,null,null,null,null,null,null,null,null,null,null,null,null,null,null,null,null,null,null,null,null,null,null,null,null,null,null,null,null,null,null,null,null,null,null,null,null,null,null,null,null,null,null,null,null,null,null,null,null,null,null,null,null,null,null,null,null,null,null,null,null,null,null,null,null,null,null,null,null,null,null,null,null,null,null,null,null,null,null,null,null,null,"東久留米市",2225]
[null,null,null,null,null,null,null,null,null,null,null,null,null,null,null,null,null,null,null,null,null,null,null,null,null,null,null,null,null,null,null,null,null,null,null,null,null,null,null,null,null,null,null,null,null,null,null,null,null,null,null,null,null,null,null,null,null,null,null,null,null,null,null,null,null,null,null,null,null,null,null,null,null,null,null,null,null,null,null,null,null,null,null,null,null,null,null,null,null,null,null,null,null,null,null,null,null,null,null,null,null,null,null,null,null,null,null,null,null,null,null,null,null,null,null,null,null,null,null,null,null,"武蔵村山市",2233]
[null,null,null,null,null,null,null,null,null,null,null,null,null,null,null,null,null,null,null,null,null,null,null,null,null,null,null,null,null,null,null,null,null,null,null,null,null,null,null,null,null,null,null,null,null,null,null,null,null,null,null,null,null,null,null,null,null,null,null,null,null,null,null,null,null,null,null,null,null,null,null,null,null,null,null,null,null,null,null,null,null,null,null,null,null,null,null,null,null,null,null,null,null,null,null,null,null,null,null,null,null,null,null,null,null,null,null,null,null,null,null,null,null,null,null,null,null,null,null,null,null,"多摩市",2241]
[null,null,null,null,null,null,null,null,null,null,null,null,null,null,null,null,null,null,null,null,null,null,null,null,null,null,null,null,null,null,null,null,null,null,null,null,null,null,null,null,null,null,null,null,null,null,null,null,null,null,null,null,null,null,null,null,null,null,null,null,null,null,null,null,null,null,null,null,null,null,null,null,null,null,null,null,null,null,null,null,null,null,null,null,null,null,null,null,null,null,null,null,null,null,null,null,null,null,null,null,null,null,null,null,null,null,null,null,null,null,null,null,null,null,null,null,null,null,null,null,null,"稲城市",2250]
[null,null,null,null,null,null,null,null,null,null,null,null,null,null,null,null,null,null,null,null,null,null,null,null,null,null,null,null,null,null,null,null,null,null,null,null,null,null,null,null,null,null,null,null,null,null,null,null,null,null,null,null,null,null,null,null,null,null,null,null,null,null,null,null,null,null,null,null,null,null,null,null,null,null,null,null,null,null,null,null,null,null,null,null,null,null,null,null,null,null,null,null,null,null,null,null,null,null,null,null,null,null,null,null,null,null,null,null,null,null,null,null,null,null,null,null,null,null,null,null,null,"羽村市",2276]
[null,null,null,null,null,null,null,null,null,null,null,null,null,null,null,null,null,null,null,null,null,null,null,null,null,null,null,null,null,null,null,null,null,null,null,null,null,null,null,null,null,null,null,null,null,null,null,null,null,null,null,null,null,null,null,null,null,null,null,null,null,null,null,null,null,null,null,null,null,null,null,null,null,null,null,null,null,null,null,null,null,null,null,null,null,null,null,null,null,null,null,null,null,null,null,null,null,null,null,null,null,null,null,null,null,null,null,null,null,null,null,null,null,null,null,null,null,null,null,null,null,"あきる野市",2284]
[null,null,null,null,null,null,null,null,null,null,null,null,null,null,null,null,null,null,null,null,null,null,null,null,null,null,null,null,null,null,null,null,null,null,null,null,null,null,null,null,null,null,null,null,null,null,null,null,null,null,null,null,null,null,null,null,null,null,null,null,null,null,null,null,null,null,null,null,null,null,null,null,null,null,null,null,null,null,null,null,null,null,null,null,null,null,null,null,null,null,null,null,null,null,null,null,null,null,null,null,null,null,null,null,null,null,null,null,null,null,null,null,null,null,null,null,null,null,null,null,null,"西東京市",2292]
[null,null,null,null,null,null,null,null,null,null,null,null,null,null,null,null,null,null,null,null,null,null,null,null,null,null,null,null,null,null,null,null,null,null,null,null,null,null,null,null,null,null,null,null,null,null,null,null,null,null,null,null,null,null,null,null,null,null,null,null,null,null,null,null,null,null,null,null,null,null,null,null,null,null,null,null,null,null,null,null,null,null,null,null,null,null,null,null,null,null,null,null,null,null,null,null,null,null,null,null,null,null,null,null,null,null,null,null,null,null,null,null,null,null,null,null,null,null,null,null,null,"瑞穂町",3035]
[null,null,null,null,null,null,null,null,null,null,null,null,null,null,null,null,null,null,null,null,null,null,null,null,null,null,null,null,null,null,null,null,null,null,null,null,null,null,null,null,null,null,null,null,null,null,null,null,null,null,null,null,null,null,null,null,null,null,null,null,null,null,null,null,null,null,null,null,null,null,null,null,null,null,null,null,null,null,null,null,null,null,null,null,null,null,null,null,null,null,null,null,null,null,null,null,null,null,null,null,null,null,null,null,null,null,null,null,null,null,null,null,null,null,null,null,null,null,null,null,null,"日の出町",3051]
[null,null,null,null,null,null,null,null,null,null,null,null,null,null,null,null,null,null,null,null,null,null,null,null,null,null,null,null,null,null,null,null,null,null,null,null,null,null,null,null,null,null,null,null,null,null,null,null,null,null,null,null,null,null,null,null,null,null,null,null,null,null,null,null,null,null,null,null,null,null,null,null,null,null,null,null,null,null,null,null,null,null,null,null,null,null,null,null,null,null,null,null,null,null,null,null,null,null,null,null,null,null,null,null,null,null,null,null,null,null,null,null,null,null,null,null,null,null,null,null,null,"檜原村",3078]
[null,null,null,null,null,null,null,null,null,null,null,null,null,null,null,null,null,null,null,null,null,null,null,null,null,null,null,null,null,null,null,null,null,null,null,null,null,null,null,null,null,null,null,null,null,null,null,null,null,null,null,null,null,null,null,null,null,null,null,null,null,null,null,null,null,null,null,null,null,null,null,null,null,null,null,null,null,null,null,null,null,null,null,null,null,null,null,null,null,null,null,null,null,null,null,null,null,null,null,null,null,null,null,null,null,null,null,null,null,null,null,null,null,null,null,null,null,null,null,null,null,"奥多摩町",3086]
[null,null,null,null,null,null,null,null,null,null,null,null,null,null,null,null,null,null,null,null,null,null,null,null,null,null,null,null,null,null,null,null,null,null,null,null,null,null,null,null,null,null,null,null,null,null,null,null,null,null,null,null,null,null,null,null,null,null,null,null,null,null,null,null,null,null,null,null,null,null,null,null,null,null,null,null,null,null,null,null,null,null,null,null,null,null,null,null,null,null,null,null,null,null,null,null,null,null,null,null,null,null,null,null,null,null,null,null,null,null,null,null,null,null,null,null,null,null,null,null,null,"大島町",3612]
[null,null,null,null,null,null,null,null,null,null,null,null,null,null,null,null,null,null,null,null,null,null,null,null,null,null,null,null,null,null,null,null,null,null,null,null,null,null,null,null,null,null,null,null,null,null,null,null,null,null,null,null,null,null,null,null,null,null,null,null,null,null,null,null,null,null,null,null,null,null,null,null,null,null,null,null,null,null,null,null,null,null,null,null,null,null,null,null,null,null,null,null,null,null,null,null,null,null,null,null,null,null,null,null,null,null,null,null,null,null,null,null,null,null,null,null,null,null,null,null,null,"利島村",3621]
[null,null,null,null,null,null,null,null,null,null,null,null,null,null,null,null,null,null,null,null,null,null,null,null,null,null,null,null,null,null,null,null,null,null,null,null,null,null,null,null,null,null,null,null,null,null,null,null,null,null,null,null,null,null,null,null,null,null,null,null,null,null,null,null,null,null,null,null,null,null,null,null,null,null,null,null,null,null,null,null,null,null,null,null,null,null,null,null,null,null,null,null,null,null,null,null,null,null,null,null,null,null,null,null,null,null,null,null,null,null,null,null,null,null,null,null,null,null,null,null,null,"新島村",3639]
[null,null,null,null,null,null,null,null,null,null,null,null,null,null,null,null,null,null,null,null,null,null,null,null,null,null,null,null,null,null,null,null,null,null,null,null,null,null,null,null,null,null,null,null,null,null,null,null,null,null,null,null,null,null,null,null,null,null,null,null,null,null,null,null,null,null,null,null,null,null,null,null,null,null,null,null,null,null,null,null,null,null,null,null,null,null,null,null,null,null,null,null,null,null,null,null,null,null,null,null,null,null,null,null,null,null,null,null,null,null,null,null,null,null,null,null,null,null,null,null,null,"神津島村",3647]
[null,null,null,null,null,null,null,null,null,null,null,null,null,null,null,null,null,null,null,null,null,null,null,null,null,null,null,null,null,null,null,null,null,null,null,null,null,null,null,null,null,null,null,null,null,null,null,null,null,null,null,null,null,null,null,null,null,null,null,null,null,null,null,null,null,null,null,null,null,null,null,null,null,null,null,null,null,null,null,null,null,null,null,null,null,null,null,null,null,null,null,null,null,null,null,null,null,null,null,null,null,null,null,null,null,null,null,null,null,null,null,null,null,null,null,null,null,null,null,null,null,"三宅村",3817]
[null,null,null,null,null,null,null,null,null,null,null,null,null,null,null,null,null,null,null,null,null,null,null,null,null,null,null,null,null,null,null,null,null,null,null,null,null,null,null,null,null,null,null,null,null,null,null,null,null,null,null,null,null,null,null,null,null,null,null,null,null,null,null,null,null,null,null,null,null,null,null,null,null,null,null,null,null,null,null,null,null,null,null,null,null,null,null,null,null,null,null,null,null,null,null,null,null,null,null,null,null,null,null,null,null,null,null,null,null,null,null,null,null,null,null,null,null,null,null,null,null,"御蔵島村",3825]
[null,null,null,null,null,null,null,null,null,null,null,null,null,null,null,null,null,null,null,null,null,null,null,null,null,null,null,null,null,null,null,null,null,null,null,null,null,null,null,null,null,null,null,null,null,null,null,null,null,null,null,null,null,null,null,null,null,null,null,null,null,null,null,null,null,null,null,null,null,null,null,null,null,null,null,null,null,null,null,null,null,null,null,null,null,null,null,null,null,null,null,null,null,null,null,null,null,null,null,null,null,null,null,null,null,null,null,null,null,null,null,null,null,null,null,null,null,null,null,null,null,"八丈町",4015]
[null,null,null,null,null,null,null,null,null,null,null,null,null,null,null,null,null,null,null,null,null,null,null,null,null,null,null,null,null,null,null,null,null,null,null,null,null,null,null,null,null,null,null,null,null,null,null,null,null,null,null,null,null,null,null,null,null,null,null,null,null,null,null,null,null,null,null,null,null,null,null,null,null,null,null,null,null,null,null,null,null,null,null,null,null,null,null,null,null,null,null,null,null,null,null,null,null,null,null,null,null,null,null,null,null,null,null,null,null,null,null,null,null,null,null,null,null,null,null,null,null,"青ヶ島村",4023]
[null,null,null,null,null,null,null,null,null,null,null,null,null,null,null,null,null,null,null,null,null,null,null,null,null,null,null,null,null,null,null,null,null,null,null,null,null,null,null,null,null,null,null,null,null,null,null,null,null,null,null,null,null,null,null,null,null,null,null,null,null,null,null,null,null,null,null,null,null,null,null,null,null,null,null,null,null,null,null,null,null,null,null,null,null,null,null,null,null,null,null,null,null,null,null,null,null,null,null,null,null,null,null,null,null,null,null,null,null,null,null,null,null,null,null,null,null,null,null,null,null,"小笠原村",4210]
[null,null,null,null,null,null,null,null,null,null,null,null,null,null,null,null,null,null,null,null,null,null,null,null,null,null,null,null,null,null,null,null,null,null,null,null,null,null,null,null,null,null,null,null,null,null,null,null,null,null,null,null,null,null,null,null,null,null,null,null,null,null,null,null,null,null,null,null,null,null,null,null,null,null,null,null,null,null,null,null,null,null,null,null,null,null,null,null,null,null,null,null,null,null,null,null,null,null,null,null,null,null,null,null,null,null,null,null,null,null,null,null,null,null,null,null,null,null,null,null,null,"合計",9999]

{"sheet":"入力用","index":2,"n_rows":67,"n_cols":109,"rows_kept":67,"cut":false,"hidden":false,"merged":[[64,1,65,2],[64,13,64,16],[64,17,64,68],[64,69,64,117],[17,1,18,2],[19,1,19,2],[20,3,21,12],[20,13,20,16],[52,1,53,2],[54,1,55,2],[56,1,57,2],[58,1,59,2],[60,1,61,2],[40,1,41,2],[42,1,43,2],[44,1,45,2],[46,1,47,2],[48,1,49,2],[50,1,51,2],[28,1,29,2],[30,1,31,2],[32,1,33,2],[34,1,35,2],[36,1,37,2],[38,1,39,2],[52,13,52,16],[20,1,21,2],[40,13,40,16],[66,13,66,16],[66,17,66,68],[66,69,66,117],[22,1,23,2],[24,1,25,2],[26,1,27,2],[60,13,60,16],[60,17,60,68],[60,69,60,117],[62,13,62,16],[62,17,62,68],[62,69,62,117],[56,13,56,16],[56,17,56,68],[56,69,56,117],[58,13,58,16],[58,17,58,68],[58,69,58,117],[66,1,67,2],[62,1,63,2],[52,17,52,68],[52,69,52,117],[54,13,54,16],[54,17,54,68],[54,69,54,117],[48,13,48,16],[48,17,48,68],[48,69,48,117],[50,13,50,16],[50,17,50,68],[50,69,50,117],[44,13,44,16],[44,17,44,68],[44,69,44,117],[46,13,46,16],[46,17,46,68],[46,69,46,117],[40,17,40,68],[40,69,40,117],[42,13,42,16],[42,17,42,68],[42,69,42,117],[36,13,36,16],[36,17,36,68],[36,69,36,117],[38,13,38,16],[38,17,38,68],[38,69,38,117],[34,13,34,16],[34,17,34,68],[34,69,34,117],[32,13,32,16],[32,17,32,68],[32,69,32,117],[12,14,14,15],[12,16,14,21],[12,22,14,34],[28,13,28,16],[28,17,28,68],[28,69,28,117],[30,13,30,16],[30,17,30,68],[30,69,30,117],[26,13,26,16],[26,17,26,68],[26,69,26,117],[20,17,21,68],[7,14,11,28],[11,35,14,94],[24,13,24,16],[24,17,24,68],[24,69,24,117],[17,95,17,102],[5,93,5,95],[5,96,5,98],[8,69,9,74],[8,75,9,80],[8,81,9,86],[8,87,9,92],[8,93,9,98],[20,69,20,117],[22,13,22,16],[22,17,22,68],[22,69,22,117],[4,108,4,112],[6,29,6,117],[14,95,15,102],[8,99,9,104],[8,105,9,110],[8,111,9,117],[11,95,12,102],[2,69,3,98],[2,99,3,107],[2,108,3,117],[4,69,4,98],[4,113,4,117],[5,72,5,74],[5,75,5,77],[5,78,5,80],[5,81,5,83],[5,84,5,86],[5,87,5,89],[5,90,5,92],[4,99,4,102],[4,103,4,107],[8,61,10,68]]}
[]
[]
[null,null,null,null,null,null,null,null,null,null,null,null,null,null,null,null,null,null,null,null,null,null,null,null,null,null,null,null,null,null,null,null,null,null,null,null,null,null,null,null,null,null,null,null,null,null,null,null,null,null,null,null,null,null,null,null,null,null,null,null,null,null,null,null,null,null,null,null,null,"事業者コード",null,null,null,null,null,null,null,null,null,null,null,null,null,null,null,null,null,null,null,null,null,null,null,null,null,null,null,null,null,"処理\n区分",null,null,null,null,null,null,null,null,"申告\n区分"]
[]
[null,null,null,null,null,null,null,null,null,null,null,null,null,null,null,null,null,null,null,null,null,null,null,null,null,null,null,null,null,null,null,null,null,null,null,null,null,null,null,null,null,null,null,null,null,null,null,null,null,null,null,null,null,null,null,null,null,null,null,null,null,null,null,null,null,null,null,null,null,{"$f":"IF(提出用!BR5=\"\",\"\",提出用!BR5)","v":""}]
[]
[]
[]
[null,null,null,null,null,null,null,null,null,null,null,null,null,null,null,null,null,null,null,null,null,null,null,null,null,null,null,null,null,null,null,null,null,null,null,null,null,null,null,null,null,null,null,null,null,null,null,null,null,null,null,null,null,null,null,null,null,null,null,null,null,"オ",null,null,null,null,null,null,null,1,null,null,null,null,null,3]
[]
[]
[null,null,null,null,null,null,null,null,null,null,null,null,null,null,null,null,null,null,null,null,null,null,null,null,null,null,null,null,null,null,null,null,null,null,null,null,null,null,null,null,null,null,null,null,null,null,null,null,null,null,null,null,null,null,null,null,null,null,null,null,null,null,null,null,null,null,null,null,null,null,null,null,null,null,null,null,null,null,null,null,null,null,null,null,null,null,null,null,null,null,null,null,null,null,null,{"$f":"IF(提出用!CR12=\"\",\"\",提出用!CR12)","v":""}]
[null,null,null,null,null,null,null,null,null,null,null,null,null,null,{"$f":"IF(提出用!O13=\"\",\"\",提出用!O13)","v":""},null,null,null,null,null,null,null,{"$f":"IF(提出用!W13=\"\",\"\",提出用!W13)","v":""}]
[]
[null,null,null,null,null,null,null,null,null,null,null,null,null,null,null,null,null,null,null,null,null,null,null,null,null,null,null,null,null,null,null,null,null,null,null,null,null,null,null,null,null,null,null,null,null,null,null,null,null,null,null,null,null,null,null,null,null,null,null,null,null,null,null,null,null,null,null,null,null,null,null,null,null,null,null,null,null,null,null,null,null,null,null,null,null,null,null,null,null,null,null,null,null,null,null,{"$f":"IF(提出用!CR15=\"\",\"\",提出用!CR15)","v":""}]
[]
[]
[null,"カ"]
[]
[]
[null,"01",null,null,null,null,null,null,null,null,null,null,null,{"$f":"IF(提出用写!N21=\"\",\"\",提出用写!N21)","v":""},null,null,null,null,null,null,null,null,null,null,null,null,null,null,null,null,null,null,null,null,null,null,null,null,null,null,null,null,null,null,null,null,null,null,null,null,null,null,null,null,null,null,null,null,null,null,null,null,null,null,null,null,null,null,null,{"$f":"IF(提出用!BR21=\"\",\"\",提出用!BR21)","v":""}]
[]
[null,"02",null,null,null,null,null,null,null,null,null,null,null,{"$f":"IF(提出用写!N23=\"\",\"\",提出用写!N23)","v":""},null,null,null,null,null,null,null,null,null,null,null,null,null,null,null,null,null,null,null,null,null,null,null,null,null,null,null,null,null,null,null,null,null,null,null,null,null,null,null,null,null,null,null,null,null,null,null,null,null,null,null,null,null,null,null,{"$f":"IF(提出用!BR23=\"\",\"\",提出用!BR23)","v":""}]
[]
[null,"03",null,null,null,null,null,null,null,null,null,null,null,{"$f":"IF(提出用写!N25=\"\",\"\",提出用写!N25)","v":""},null,null,null,null,null,null,null,null,null,null,null,null,null,null,null,null,null,null,null,null,null,null,null,null,null,null,null,null,null,null,null,null,null,null,null,null,null,null,null,null,null,null,null,null,null,null,null,null,null,null,null,null,null,null,null,{"$f":"IF(提出用!BR25=\"\",\"\",提出用!BR25)","v":""}]
[]
[null,"04",null,null,null,null,null,null,null,null,null,null,null,{"$f":"IF(提出用写!N27=\"\",\"\",提出用写!N27)","v":""},null,null,null,null,null,null,null,null,null,null,null,null,null,null,null,null,null,null,null,null,null,null,null,null,null,null,null,null,null,null,null,null,null,null,null,null,null,null,null,null,null,null,null,null,null,null,null,null,null,null,null,null,null,null,null,{"$f":"IF(提出用!BR27=\"\",\"\",提出用!BR27)","v":""}]
[]
[null,"05",null,null,null,null,null,null,null,null,null,null,null,{"$f":"IF(提出用写!N29=\"\",\"\",提出用写!N29)","v":""},null,null,null,null,null,null,null,null,null,null,null,null,null,null,null,null,null,null,null,null,null,null,null,null,null,null,null,null,null,null,null,null,null,null,null,null,null,null,null,null,null,null,null,null,null,null,null,null,null,null,null,null,null,null,null,{"$f":"IF(提出用!BR29=\"\",\"\",提出用!BR29)","v":""}]
[]
[null,"06",null,null,null,null,null,null,null,null,null,null,null,{"$f":"IF(提出用写!N31=\"\",\"\",提出用写!N31)","v":""},null,null,null,null,null,null,null,null,null,null,null,null,null,null,null,null,null,null,null,null,null,null,null,null,null,null,null,null,null,null,null,null,null,null,null,null,null,null,null,null,null,null,null,null,null,null,null,null,null,null,null,null,null,null,null,{"$f":"IF(提出用!BR31=\"\",\"\",提出用!BR31)","v":""}]
[]
[null,"07",null,null,null,null,null,null,null,null,null,null,null,{"$f":"IF(提出用写!N33=\"\",\"\",提出用写!N33)","v":""},null,null,null,null,null,null,null,null,null,null,null,null,null,null,null,null,null,null,null,null,null,null,null,null,null,null,null,null,null,null,null,null,null,null,null,null,null,null,null,null,null,null,null,null,null,null,null,null,null,null,null,null,null,null,null,{"$f":"IF(提出用!BR33=\"\",\"\",提出用!BR33)","v":""}]
[]
[null,"08",null,null,null,null,null,null,null,null,null,null,null,{"$f":"IF(提出用写!N35=\"\",\"\",提出用写!N35)","v":""},null,null,null,null,null,null,null,null,null,null,null,null,null,null,null,null,null,null,null,null,null,null,null,null,null,null,null,null,null,null,null,null,null,null,null,null,null,null,null,null,null,null,null,null,null,null,null,null,null,null,null,null,null,null,null,{"$f":"IF(提出用!BR35=\"\",\"\",提出用!BR35)","v":""}]
[]
[null,"09",null,null,null,null,null,null,null,null,null,null,null,{"$f":"IF(提出用写!N37=\"\",\"\",提出用写!N37)","v":""},null,null,null,null,null,null,null,null,null,null,null,null,null,null,null,null,null,null,null,null,null,null,null,null,null,null,null,null,null,null,null,null,null,null,null,null,null,null,null,null,null,null,null,null,null,null,null,null,null,null,null,null,null,null,null,{"$f":"IF(提出用!BR37=\"\",\"\",提出用!BR37)","v":""}]
[]
[null,"10",null,null,null,null,null,null,null,null,null,null,null,{"$f":"IF(提出用写!N39=\"\",\"\",提出用写!N39)","v":""},null,null,null,null,null,null,null,null,null,null,null,null,null,null,null,null,null,null,null,null,null,null,null,null,null,null,null,null,null,null,null,null,null,null,null,null,null,null,null,null,null,null,null,null,null,null,null,null,null,null,null,null,null,null,null,{"$f":"IF(提出用!BR39=\"\",\"\",提出用!BR39)","v":""}]
[]
[null,"11",null,null,null,null,null,null,null,null,null,null,null,{"$f":"IF(提出用写!N41=\"\",\"\",提出用写!N41)","v":""},null,null,null,null,null,null,null,null,null,null,null,null,null,null,null,null,null,null,null,null,null,null,null,null,null,null,null,null,null,null,null,null,null,null,null,null,null,null,null,null,null,null,null,null,null,null,null,null,null,null,null,null,null,null,null,{"$f":"IF(提出用!BR41=\"\",\"\",提出用!BR41)","v":""}]
[]
[null,"12",null,null,null,null,null,null,null,null,null,null,null,{"$f":"IF(提出用写!N43=\"\",\"\",提出用写!N43)","v":""},null,null,null,null,null,null,null,null,null,null,null,null,null,null,null,null,null,null,null,null,null,null,null,null,null,null,null,null,null,null,null,null,null,null,null,null,null,null,null,null,null,null,null,null,null,null,null,null,null,null,null,null,null,null,null,{"$f":"IF(提出用!BR43=\"\",\"\",提出用!BR43)","v":""}]
[]
[null,"13",null,null,null,null,null,null,null,null,null,null,null,{"$f":"IF(提出用写!N45=\"\",\"\",提出用写!N45)","v":""},null,null,null,null,null,null,null,null,null,null,null,null,null,null,null,null,null,null,null,null,null,null,null,null,null,null,null,null,null,null,null,null,null,null,null,null,null,null,null,null,null,null,null,null,null,null,null,null,null,null,null,null,null,null,null,{"$f":"IF(提出用!BR45=\"\",\"\",提出用!BR45)","v":""}]
[]
[null,"14",null,null,null,null,null,null,null,null,null,null,null,{"$f":"IF(提出用写!N47=\"\",\"\",提出用写!N47)","v":""},null,null,null,null,null,null,null,null,null,null,null,null,null,null,null,null,null,null,null,null,null,null,null,null,null,null,null,null,null,null,null,null,null,null,null,null,null,null,null,null,null,null,null,null,null,null,null,null,null,null,null,null,null,null,null,{"$f":"IF(提出用!BR47=\"\",\"\",提出用!BR47)","v":""}]
[]
[null,"15",null,null,null,null,null,null,null,null,null,null,null,{"$f":"IF(提出用写!N49=\"\",\"\",提出用写!N49)","v":""},null,null,null,null,null,null,null,null,null,null,null,null,null,null,null,null,null,null,null,null,null,null,null,null,null,null,null,null,null,null,null,null,null,null,null,null,null,null,null,null,null,null,null,null,null,null,null,null,null,null,null,null,null,null,null,{"$f":"IF(提出用!BR49=\"\",\"\",提出用!BR49)","v":""}]
[]
[null,"16",null,null,null,null,null,null,null,null,null,null,null,{"$f":"IF(提出用写!N51=\"\",\"\",提出用写!N51)","v":""},null,null,null,null,null,null,null,null,null,null,null,null,null,null,null,null,null,null,null,null,null,null,null,null,null,null,null,null,null,null,null,null,null,null,null,null,null,null,null,null,null,null,null,null,null,null,null,null,null,null,null,null,null,null,null,{"$f":"IF(提出用!BR51=\"\",\"\",提出用!BR51)","v":""}]
[]
[null,"17",null,null,null,null,null,null,null,null,null,null,null,{"$f":"IF(提出用写!N53=\"\",\"\",提出用写!N53)","v":""},null,null,null,null,null,null,null,null,null,null,null,null,null,null,null,null,null,null,null,null,null,null,null,null,null,null,null,null,null,null,null,null,null,null,null,null,null,null,null,null,null,null,null,null,null,null,null,null,null,null,null,null,null,null,null,{"$f":"IF(提出用!BR53=\"\",\"\",提出用!BR53)","v":""}]
[]
[null,"18",null,null,null,null,null,null,null,null,null,null,null,{"$f":"IF(提出用写!N55=\"\",\"\",提出用写!N55)","v":""},null,null,null,null,null,null,null,null,null,null,null,null,null,null,null,null,null,null,null,null,null,null,null,null,null,null,null,null,null,null,null,null,null,null,null,null,null,null,null,null,null,null,null,null,null,null,null,null,null,null,null,null,null,null,null,{"$f":"IF(提出用!BR55=\"\",\"\",提出用!BR55)","v":""}]
[]
[null,"19",null,null,null,null,null,null,null,null,null,null,null,{"$f":"IF(提出用写!N57=\"\",\"\",提出用写!N57)","v":""},null,null,null,null,null,null,null,null,null,null,null,null,null,null,null,null,null,null,null,null,null,null,null,null,null,null,null,null,null,null,null,null,null,null,null,null,null,null,null,null,null,null,null,null,null,null,null,null,null,null,null,null,null,null,null,{"$f":"IF(提出用!BR57=\"\",\"\",提出用!BR57)","v":""}]
[]
[null,"20",null,null,null,null,null,null,null,null,null,null,null,{"$f":"IF(提出用写!N59=\"\",\"\",提出用写!N59)","v":""},null,null,null,null,null,null,null,null,null,null,null,null,null,null,null,null,null,null,null,null,null,null,null,null,null,null,null,null,null,null,null,null,null,null,null,null,null,null,null,null,null,null,null,null,null,null,null,null,null,null,null,null,null,null,null,{"$f":"IF(提出用!BR59=\"\",\"\",提出用!BR59)","v":""}]
[]
[null,"21",null,null,null,null,null,null,null,null,null,null,null,{"$f":"IF(提出用写!N61=\"\",\"\",提出用写!N61)","v":""},null,null,null,null,null,null,null,null,null,null,null,null,null,null,null,null,null,null,null,null,null,null,null,null,null,null,null,null,null,null,null,null,null,null,null,null,null,null,null,null,null,null,null,null,null,null,null,null,null,null,null,null,null,null,null,{"$f":"IF(提出用!BR61=\"\",\"\",提出用!BR61)","v":""}]
[]
[null,"22",null,null,null,null,null,null,null,null,null,null,null,{"$f":"IF(提出用写!N63=\"\",\"\",提出用写!N63)","v":""},null,null,null,null,null,null,null,null,null,null,null,null,null,null,null,null,null,null,null,null,null,null,null,null,null,null,null,null,null,null,null,null,null,null,null,null,null,null,null,null,null,null,null,null,null,null,null,null,null,null,null,null,null,null,null,{"$f":"IF(提出用!BR63=\"\",\"\",提出用!BR63)","v":""}]
[]
[null,"23",null,null,null,null,null,null,null,null,null,null,null,{"$f":"IF(提出用写!N65=\"\",\"\",提出用写!N65)","v":""},null,null,null,null,null,null,null,null,null,null,null,null,null,null,null,null,null,null,null,null,null,null,null,null,null,null,null,null,null,null,null,null,null,null,null,null,null,null,null,null,null,null,null,null,null,null,null,null,null,null,null,null,null,null,null,{"$f":"IF(提出用!BR65=\"\",\"\",提出用!BR65)","v":""}]
[]
[null,"24",null,null,null,null,null,null,null,null,null,null,null,{"$f":"IF(提出用写!N67=\"\",\"\",提出用写!N67)","v":""},null,null,null,null,null,null,null,null,null,null,null,null,null,null,null,null,null,null,null,null,null,null,null,null,null,null,null,null,null,null,null,null,null,null,null,null,null,null,null,null,null,null,null,null,null,null,null,null,null,null,null,null,null,null,null,{"$f":"IF(提出用!BR67=\"\",\"\",提出用!BR67)","v":""}]

{"sheet":"提出用控","index":3,"n_rows":67,"n_cols":109,"rows_kept":67,"cut":false,"hidden":false,"merged":[[66,1,67,11],[66,17,66,68],[66,69,66,117],[48,17,48,68],[48,69,48,117],[50,1,51,11],[50,17,50,68],[50,69,50,117],[66,12,67,16],[52,12,53,16],[54,12,55,16],[56,12,57,16],[58,12,59,16],[60,1,61,11],[60,17,60,68],[60,69,60,117],[56,1,57,11],[56,17,56,68],[56,69,56,117],[58,1,59,11],[62,17,62,68],[62,69,62,117],[58,17,58,68],[58,69,58,117],[34,12,35,16],[36,12,37,16],[38,12,39,16],[40,1,41,11],[40,17,40,68],[40,69,40,117],[32,1,33,11],[64,1,65,11],[64,12,65,16],[64,17,64,68],[64,69,64,117],[60,12,61,16],[62,12,63,16],[44,12,45,16],[46,12,47,16],[48,12,49,16],[52,1,53,11],[52,17,52,68],[52,69,52,117],[54,1,55,11],[54,17,54,68],[54,69,54,117],[48,1,49,11],[62,1,63,11],[32,17,32,68],[32,69,32,117],[34,1,35,11],[34,17,34,68],[34,69,34,117],[42,1,43,11],[40,12,41,16],[42,12,43,16],[50,12,51,16],[42,17,42,68],[42,69,42,117],[36,1,37,11],[36,17,36,68],[36,69,36,117],[38,1,39,11],[38,17,38,68],[38,69,38,117],[44,1,45,11],[44,17,44,68],[44,69,44,117],[46,1,47,11],[46,17,46,68],[46,69,46,117],[32,12,33,16],[19,12,21,16],[22,12,23,16],[30,1,31,11],[30,17,30,68],[30,69,30,117],[24,1,25,11],[24,17,24,68],[24,69,24,117],[26,1,27,11],[26,17,26,68],[26,69,26,117],[24,12,25,16],[26,12,27,16],[20,17,20,68],[20,69,20,117],[20,1,21,11],[19,1,19,11],[22,1,23,11],[22,17,22,68],[22,69,22,117],[28,12,29,16],[30,12,31,16],[28,1,29,11],[28,17,28,68],[14,95,15,102],[14,103,16,117],[17,1,18,11],[5,72,5,74],[5,75,5,77],[11,95,12,102],[11,103,13,117],[12,11,14,13],[12,14,14,15],[12,16,14,21],[12,22,14,34],[12,35,14,50],[8,69,9,74],[8,75,9,80],[8,81,9,86],[8,87,9,92],[8,93,9,98],[8,99,9,104],[8,105,9,110],[8,111,9,117],[28,69,28,117],[17,12,18,117],[4,1,6,63],[3,1,3,63],[7,1,8,63],[9,1,9,63],[4,99,4,102],[4,103,4,107],[2,64,10,68],[2,69,3,98],[2,99,3,107],[6,69,7,80],[6,81,7,117],[2,108,3,117],[4,69,4,98],[5,78,5,80],[5,81,5,83],[5,84,5,86],[5,87,5,89],[5,90,5,92],[5,93,5,95],[5,96,5,98],[4,108,4,112],[4,113,4,117]]}
[]
[]
[null,null,null,null,null,null,null,null,null,null,null,null,null,null,null,null,null,null,null,null,null,null,null,null,null,null,null,null,null,null,null,null,null,null,null,null,null,null,null,null,null,null,null,null,null,null,null,null,null,null,null,null,null,null,null,null,null,null,null,null,null,null,null,null,"※処理事項",null,null,null,null,"事業者コード",null,null,null,null,null,null,null,null,null,null,null,null,null,null,null,null,null,null,null,null,null,null,null,null,null,null,null,null,null,"処理\n区分",null,null,null,null,null,null,null,null,"申告\n区分"]
[null,"　申告者の氏名又は名称"]
[null,{"$f":"IF(提出用!B5=\"\",\"\",提出用!B5)","v":""},null,null,null,null,null,null,null,null,null,null,null,null,null,null,null,null,null,null,null,null,null,null,null,null,null,null,null,null,null,null,null,null,null,null,null,null,null,null,null,null,null,null,null,null,null,null,null,null,null,null,null,null,null,null,null,null,null,null,null,null,null,null,null,null,null,null,null,{"$f":"IF(提出用!BR5=\"\",\"\",提出用!BR5)","v":""}]
[]
[null,null,null,null,null,null,null,null,null,null,null,null,null,null,null,null,null,null,null,null,null,null,null,null,null,null,null,null,null,null,null,null,null,null,null,null,null,null,null,null,null,null,null,null,null,null,null,null,null,null,null,null,null,null,null,null,null,null,null,null,null,null,null,null,null,null,null,null,null,"予備",null,null,null,null,null,null,null,null,null,null,null,"申告年月日"]
[null,"　個人番号又は法人番号\n　 　    　　↓個人番号の記載に当たっては、左端を空欄とし、ここから記載してください。"]
[null,null,null,null,null,null,null,null,null,null,null,null,null,null,null,null,null,null,null,null,null,null,null,null,null,null,null,null,null,null,null,null,null,null,null,null,null,null,null,null,null,null,null,null,null,null,null,null,null,null,null,null,null,null,null,null,null,null,null,null,null,null,null,null,null,null,null,null,null,1,null,null,null,null,null,3]
[null,{"$f":"IF(提出用!B10=\"\",\"\",提出用!B10)","v":""}]
[]
[null,null,null,null,null,null,null,null,null,null,null,null,null,null,null,null,null,null,null,null,null,null,null,null,null,null,null,null,null,null,null,null,null,null,null,null,null,null,null,null,null,null,null,null,null,null,null,null,null,null,null,null,null,null,null,null,null,null,null,null,null,null,null,null,null,null,null,null,null,null,null,null,null,null,null,null,null,null,null,null,null,null,null,null,null,null,null,null,null,null,null,null,null,null,null,{"$f":"IF(提出用!CR12=\"\",\"\",提出用!CR12)","v":""},null,null,null,null,null,null,null,"枚のうち"]
[null,null,null,null,null,null,null,null,null,null,null,"令和",null,null,{"$f":"IF(提出用!O13=\"\",\"\",提出用!O13)","v":""},null,"年",null,null,null,null,null,{"$f":"IF(提出用!W13=\"\",\"\",提出用!W13)","v":""},null,null,null,null,null,null,null,null,null,null,null,null,"月分"]
[]
[null,null,null,null,null,null,null,null,null,null,null,null,null,null,null,null,null,null,null,null,null,null,null,null,null,null,null,null,null,null,null,null,null,null,null,null,null,null,null,null,null,null,null,null,null,null,null,null,null,null,null,null,null,null,null,null,null,null,null,null,null,null,null,null,null,null,null,null,null,null,null,null,null,null,null,null,null,null,null,null,null,null,null,null,null,null,null,null,null,null,null,null,null,null,null,{"$f":"IF(提出用!CR15=\"\",\"\",提出用!CR15)","v":""},null,null,null,null,null,null,null,"枚目"]
[]
[]
[null,"区市町村名",null,null,null,null,null,null,null,null,null,null,"売渡し又は消費等の合計数量"]
[]
[]
[null,{"$f":"IF(提出用!B21=\"\",\"\",提出用!B21)","v":""},null,null,null,null,null,null,null,null,null,null,null,null,null,null,null,null,null,null,null,null,null,null,null,null,null,null,null,null,null,null,null,null,null,null,null,null,null,null,null,null,null,null,null,null,null,null,null,null,null,null,null,null,null,null,null,null,null,null,null,null,null,null,null,null,null,null,null,{"$f":"IF(提出用!BR21=\"\",\"\",提出用!BR21)","v":""}]
[]
[null,{"$f":"IF(提出用!B23=\"\",\"\",提出用!B23)","v":""},null,null,null,null,null,null,null,null,null,null,null,null,null,null,null,null,null,null,null,null,null,null,null,null,null,null,null,null,null,null,null,null,null,null,null,null,null,null,null,null,null,null,null,null,null,null,null,null,null,null,null,null,null,null,null,null,null,null,null,null,null,null,null,null,null,null,null,{"$f":"IF(提出用!BR23=\"\",\"\",提出用!BR23)","v":""}]
[]
[null,{"$f":"IF(提出用!B25=\"\",\"\",提出用!B25)","v":""},null,null,null,null,null,null,null,null,null,null,null,null,null,null,null,null,null,null,null,null,null,null,null,null,null,null,null,null,null,null,null,null,null,null,null,null,null,null,null,null,null,null,null,null,null,null,null,null,null,null,null,null,null,null,null,null,null,null,null,null,null,null,null,null,null,null,null,{"$f":"IF(提出用!BR25=\"\",\"\",提出用!BR25)","v":""}]
[]
[null,{"$f":"IF(提出用!B27=\"\",\"\",提出用!B27)","v":""},null,null,null,null,null,null,null,null,null,null,null,null,null,null,null,null,null,null,null,null,null,null,null,null,null,null,null,null,null,null,null,null,null,null,null,null,null,null,null,null,null,null,null,null,null,null,null,null,null,null,null,null,null,null,null,null,null,null,null,null,null,null,null,null,null,null,null,{"$f":"IF(提出用!BR27=\"\",\"\",提出用!BR27)","v":""}]
[]
[null,{"$f":"IF(提出用!B29=\"\",\"\",提出用!B29)","v":""},null,null,null,null,null,null,null,null,null,null,null,null,null,null,null,null,null,null,null,null,null,null,null,null,null,null,null,null,null,null,null,null,null,null,null,null,null,null,null,null,null,null,null,null,null,null,null,null,null,null,null,null,null,null,null,null,null,null,null,null,null,null,null,null,null,null,null,{"$f":"IF(提出用!BR29=\"\",\"\",提出用!BR29)","v":""}]
[]
[null,{"$f":"IF(提出用!B31=\"\",\"\",提出用!B31)","v":""},null,null,null,null,null,null,null,null,null,null,null,null,null,null,null,null,null,null,null,null,null,null,null,null,null,null,null,null,null,null,null,null,null,null,null,null,null,null,null,null,null,null,null,null,null,null,null,null,null,null,null,null,null,null,null,null,null,null,null,null,null,null,null,null,null,null,null,{"$f":"IF(提出用!BR31=\"\",\"\",提出用!BR31)","v":""}]
[]
[null,{"$f":"IF(提出用!B33=\"\",\"\",提出用!B33)","v":""},null,null,null,null,null,null,null,null,null,null,null,null,null,null,null,null,null,null,null,null,null,null,null,null,null,null,null,null,null,null,null,null,null,null,null,null,null,null,null,null,null,null,null,null,null,null,null,null,null,null,null,null,null,null,null,null,null,null,null,null,null,null,null,null,null,null,null,{"$f":"IF(提出用!BR33=\"\",\"\",提出用!BR33)","v":""}]
[]
[null,{"$f":"IF(提出用!B35=\"\",\"\",提出用!B35)","v":""},null,null,null,null,null,null,null,null,null,null,null,null,null,null,null,null,null,null,null,null,null,null,null,null,null,null,null,null,null,null,null,null,null,null,null,null,null,null,null,null,null,null,null,null,null,null,null,null,null,null,null,null,null,null,null,null,null,null,null,null,null,null,null,null,null,null,null,{"$f":"IF(提出用!BR35=\"\",\"\",提出用!BR35)","v":""}]
[]
[null,{"$f":"IF(提出用!B37=\"\",\"\",提出用!B37)","v":""},null,null,null,null,null,null,null,null,null,null,null,null,null,null,null,null,null,null,null,null,null,null,null,null,null,null,null,null,null,null,null,null,null,null,null,null,null,null,null,null,null,null,null,null,null,null,null,null,null,null,null,null,null,null,null,null,null,null,null,null,null,null,null,null,null,null,null,{"$f":"IF(提出用!BR37=\"\",\"\",提出用!BR37)","v":""}]
[]
[null,{"$f":"IF(提出用!B39=\"\",\"\",提出用!B39)","v":""},null,null,null,null,null,null,null,null,null,null,null,null,null,null,null,null,null,null,null,null,null,null,null,null,null,null,null,null,null,null,null,null,null,null,null,null,null,null,null,null,null,null,null,null,null,null,null,null,null,null,null,null,null,null,null,null,null,null,null,null,null,null,null,null,null,null,null,{"$f":"IF(提出用!BR39=\"\",\"\",提出用!BR39)","v":""}]
[]
[null,{"$f":"IF(提出用!B41=\"\",\"\",提出用!B41)","v":""},null,null,null,null,null,null,null,null,null,null,null,null,null,null,null,null,null,null,null,null,null,null,null,null,null,null,null,null,null,null,null,null,null,null,null,null,null,null,null,null,null,null,null,null,null,null,null,null,null,null,null,null,null,null,null,null,null,null,null,null,null,null,null,null,null,null,null,{"$f":"IF(提出用!BR41=\"\",\"\",提出用!BR41)","v":""}]
[]
[null,{"$f":"IF(提出用!B43=\"\",\"\",提出用!B43)","v":""},null,null,null,null,null,null,null,null,null,null,null,null,null,null,null,null,null,null,null,null,null,null,null,null,null,null,null,null,null,null,null,null,null,null,null,null,null,null,null,null,null,null,null,null,null,null,null,null,null,null,null,null,null,null,null,null,null,null,null,null,null,null,null,null,null,null,null,{"$f":"IF(提出用!BR43=\"\",\"\",提出用!BR43)","v":""}]
[]
[null,{"$f":"IF(提出用!B45=\"\",\"\",提出用!B45)","v":""},null,null,null,null,null,null,null,null,null,null,null,null,null,null,null,null,null,null,null,null,null,null,null,null,null,null,null,null,null,null,null,null,null,null,null,null,null,null,null,null,null,null,null,null,null,null,null,null,null,null,null,null,null,null,null,null,null,null,null,null,null,null,null,null,null,null,null,{"$f":"IF(提出用!BR45=\"\",\"\",提出用!BR45)","v":""}]
[]
[null,{"$f":"IF(提出用!B47=\"\",\"\",提出用!B47)","v":""},null,null,null,null,null,null,null,null,null,null,null,null,null,null,null,null,null,null,null,null,null,null,null,null,null,null,null,null,null,null,null,null,null,null,null,null,null,null,null,null,null,null,null,null,null,null,null,null,null,null,null,null,null,null,null,null,null,null,null,null,null,null,null,null,null,null,null,{"$f":"IF(提出用!BR47=\"\",\"\",提出用!BR47)","v":""}]
[]
[null,{"$f":"IF(提出用!B49=\"\",\"\",提出用!B49)","v":""},null,null,null,null,null,null,null,null,null,null,null,null,null,null,null,null,null,null,null,null,null,null,null,null,null,null,null,null,null,null,null,null,null,null,null,null,null,null,null,null,null,null,null,null,null,null,null,null,null,null,null,null,null,null,null,null,null,null,null,null,null,null,null,null,null,null,null,{"$f":"IF(提出用!BR49=\"\",\"\",提出用!BR49)","v":""}]
[]
[null,{"$f":"IF(提出用!B51=\"\",\"\",提出用!B51)","v":""},null,null,null,null,null,null,null,null,null,null,null,null,null,null,null,null,null,null,null,null,null,null,null,null,null,null,null,null,null,null,null,null,null,null,null,null,null,null,null,null,null,null,null,null,null,null,null,null,null,null,null,null,null,null,null,null,null,null,null,null,null,null,null,null,null,null,null,{"$f":"IF(提出用!BR51=\"\",\"\",提出用!BR51)","v":""}]
[]
[null,{"$f":"IF(提出用!B53=\"\",\"\",提出用!B53)","v":""},null,null,null,null,null,null,null,null,null,null,null,null,null,null,null,null,null,null,null,null,null,null,null,null,null,null,null,null,null,null,null,null,null,null,null,null,null,null,null,null,null,null,null,null,null,null,null,null,null,null,null,null,null,null,null,null,null,null,null,null,null,null,null,null,null,null,null,{"$f":"IF(提出用!BR53=\"\",\"\",提出用!BR53)","v":""}]
[]
[null,{"$f":"IF(提出用!B55=\"\",\"\",提出用!B55)","v":""},null,null,null,null,null,null,null,null,null,null,null,null,null,null,null,null,null,null,null,null,null,null,null,null,null,null,null,null,null,null,null,null,null,null,null,null,null,null,null,null,null,null,null,null,null,null,null,null,null,null,null,null,null,null,null,null,null,null,null,null,null,null,null,null,null,null,null,{"$f":"IF(提出用!BR55=\"\",\"\",提出用!BR55)","v":""}]
[]
[null,{"$f":"IF(提出用!B57=\"\",\"\",提出用!B57)","v":""},null,null,null,null,null,null,null,null,null,null,null,null,null,null,null,null,null,null,null,null,null,null,null,null,null,null,null,null,null,null,null,null,null,null,null,null,null,null,null,null,null,null,null,null,null,null,null,null,null,null,null,null,null,null,null,null,null,null,null,null,null,null,null,null,null,null,null,{"$f":"IF(提出用!BR57=\"\",\"\",提出用!BR57)","v":""}]
[]
[null,{"$f":"IF(提出用!B59=\"\",\"\",提出用!B59)","v":""},null,null,null,null,null,null,null,null,null,null,null,null,null,null,null,null,null,null,null,null,null,null,null,null,null,null,null,null,null,null,null,null,null,null,null,null,null,null,null,null,null,null,null,null,null,null,null,null,null,null,null,null,null,null,null,null,null,null,null,null,null,null,null,null,null,null,null,{"$f":"IF(提出用!BR59=\"\",\"\",提出用!BR59)","v":""}]
[]
[null,{"$f":"IF(提出用!B61=\"\",\"\",提出用!B61)","v":""},null,null,null,null,null,null,null,null,null,null,null,null,null,null,null,null,null,null,null,null,null,null,null,null,null,null,null,null,null,null,null,null,null,null,null,null,null,null,null,null,null,null,null,null,null,null,null,null,null,null,null,null,null,null,null,null,null,null,null,null,null,null,null,null,null,null,null,{"$f":"IF(提出用!BR61=\"\",\"\",提出用!BR61)","v":""}]
[]
[null,{"$f":"IF(提出用!B63=\"\",\"\",提出用!B63)","v":""},null,null,null,null,null,null,null,null,null,null,null,null,null,null,null,null,null,null,null,null,null,null,null,null,null,null,null,null,null,null,null,null,null,null,null,null,null,null,null,null,null,null,null,null,null,null,null,null,null,null,null,null,null,null,null,null,null,null,null,null,null,null,null,null,null,null,null,{"$f":"IF(提出用!BR63=\"\",\"\",提出用!BR63)","v":""}]
[]
[null,{"$f":"IF(提出用!B65=\"\",\"\",提出用!B65)","v":""},null,null,null,null,null,null,null,null,null,null,null,null,null,null,null,null,null,null,null,null,null,null,null,null,null,null,null,null,null,null,null,null,null,null,null,null,null,null,null,null,null,null,null,null,null,null,null,null,null,null,null,null,null,null,null,null,null,null,null,null,null,null,null,null,null,null,null,{"$f":"IF(提出用!BR65=\"\",\"\",提出用!BR65)","v":""}]
[]
[null,{"$f":"IF(提出用!B67=\"\",\"\",提出用!B67)","v":""},null,null,null,null,null,null,null,null,null,null,null,null,null,null,null,null,null,null,null,null,null,null,null,null,null,null,null,null,null,null,null,null,null,null,null,null,null,null,null,null,null,null,null,null,null,null,null,null,null,null,null,null,null,null,null,null,null,null,null,null,null,null,null,null,null,null,null,{"$f":"IF(提出用!BR67=\"\",\"\",提出用!BR67)","v":""}]